Cogmind - Beta 10.2 @@@ ROGUE MODE // 2020.12.07 @ 10:36:54 Player: RIFObf6WSBKinetics Result: Escaped singularity! Performance ------------- Evolutions (9) 4500 Regions Visited (41) 8200 Robots Destroyed (597) 2985 Value Destroyed (32485) 32485 Prototype IDs (121) 2420 Alien Tech Used (10) 2000 Bonus (50322) 50322 TOTAL SCORE: 102912 Bonus ------- High Alert Combat Kills 4103 Follower Combat Kills 529 Entered Garrisons 1000 Used RIF Installer 2500 Network Hubs Disabled 400 Aligned with FarCom 300 Met Data Miner 300 Met Zhirov 300 MAIN.C Attacked Warlord 500 Warlord Defense Kill 1620 Hacked Protovariant 500 Met R17 at Research 2000 Destroyed MAIN.C Guards 500 Met MAIN.C 5000 Destroyed MAIN.C Shell 5000 Destroyed MAIN.C 10000 Met Architect 300 Destroyed A6 400 Destroyed A5 500 Destroyed Architect 15000 Win 3000 Friendly Fire -3430 Cogmind --------- Core Integrity 846/1600 Matter 140/300 Energy 99/100 System Corruption 3% Temperature Cool (0) Movement Core (50) Location Near Former Tau Ceti IV Parts ------- > --- POWER (2) -------- (None) > --- PROPULSION (6) --- (None) > --- UTILITY (11) ----- (None) > --- WEAPON (6) ------- (None) > --- INVENTORY (6) ---- Enhanced Armored Heavy Treads Desublimator Experimental Energy Well (1000) Experimental Matter Compressor (453) Subatomic Replicator Peak State ------------ > --- POWER ------------ Vortex Chain Reactor > --- PROPULSION ------- Armored Heavy Treads Experimental Biometal Heavy Treads Experimental Biometal Heavy Treads > --- UTILITY ---------- Desublimator Medium Storage Unit Medium Storage Unit Large Storage Unit Experimental Targeting Computer Experimental Armor Integrity Analyzer Advanced Kinecellerator Experimental Weapon Cycler Experimental Powered Armor Experimental Powered Armor AEGIS Remote Shield > --- WEAPON ----------- Multirail Multirail Omega Cannon Sigix Broadsword > --- INVENTORY -------- Reinforced Quantum Reactor Enhanced Armored Heavy Treads Experimental Energy Well Experimental Matter Compressor Experimental Optical Array Experimental Targeting Computer Experimental Targeting Computer Advanced Weapon Cycler Improved Utility Shielding AEGIS Remote Shield Long-range Tractor Beam Subatomic Replicator Enhanced Nova Cannon Cooled Nova Cannon Multirail Multirail Multirail Hypervelocity Linear Accelerator Graviton Cannon [Rating: 255] Favorites ----------- Power Reinforced Quantum Reactor Engine Improved Ion Engine Power Core Light Nuclear Core Reactor Reinforced Quantum Reactor Propulsion Armored Treads Treads Armored Treads Leg Myomer Leg Wheel Wheel Flight Unit VTOL Module Utility High-capacity Storage Unit Device Advanced Weapon Cycler Storage High-capacity Storage Unit Processor Experimental Targeting Computer Hackware Hacking Suite Protection Medium Regenerative Plating Artifact Matter Drive Weapon KE Penetrator Energy Gun Gamma Rifle Energy Cannon Compact HERF Cannon Ballistic Gun KE Penetrator Ballistic Cannon Hypercooled Linear Accelerator Launcher Rocket Launcher Special Weapon Remote Datajack Impact Weapon Powered Hammer Slashing Weapon Sigix Broadsword Build | -11 -10 -10 -10 -9 -8 -8 -7 -7 -7 -7 -7 -7 -6 -6 -6 -6 -6 -6 -6 -6 -5 -5 -5 -5 -5 -5 -4 -4 -4 -4 -4 -3 -3 -3 -3 -3 -2 -2 -1 -1 -1 ------- Run | Scr Mat Min Exi Min Mat Gar Fac Gar Fac Low Low Dat Pro Fac Gar Fac Ext Cet Arc Hub Fac Gar Fac Upp Upp Zhi Pro Fac Upp Upp War Pro Res Qua Sec Gar Res Tes Acc Com Ac0 Slots Evolved 18 | . . . . . 4 . 2 . . . . . . 2 . . . . . . 2 . . . . . . 2 . . . . 2 . . . 2 . 2 . . Power 1 | . . . . . . . . . . . . . . . . . . . . . . . . . . . . 1 . . . . . . . . . . . . . Propulsion 4 | . . . . . 2 . . . . . . . . . . . . . . . . . . . . . . . . . . . 2 . . . . . . . . Utility 9 | . . . . . 2 . . . . . . . . 2 . . . . . . 2 . . . . . . 1 . . . . . . . . . . 2 . . Weapon 4 | . . . . . . . 2 . . . . . . . . . . . . . . . . . . . . . . . . . . . . . 2 . . . . Parts Attached 732 | 9 15 1 21 3 26 4 2 7 17 15 4 1 30 39 14 13 13 15 5 5 3 8 27 2 3 4 1 1 9 1 47 9 61 49 29 10 8 10 14 141 36 Power 58 | 1 1 . 2 1 . 1 . . 2 . 1 . . 2 1 . . 1 1 . . 1 2 . . 1 . . 1 . 2 . 10 7 4 3 1 . 3 8 1 Engine 9 | 1 1 . 1 1 . . . . 2 . . . . 2 . . . . . . . 1 . . . . . . . . . . . . . . . . . . . Core 7 | . . . 1 . . 1 . . . . 1 . . . 1 . . . . . . . 2 . . . . . . . . . . 1 . . . . . . . Reactor 42 | . . . . . . . . . . . . . . . . . . 1 1 . . . . . . 1 . . 1 . 2 . 10 6 4 3 1 . 3 8 1 Propulsion 136 | 2 2 . 4 . 10 . . 2 . . 1 . 4 8 3 5 9 4 . 1 . 2 5 . 1 1 . 1 3 . 9 5 9 12 1 2 2 . 3 25 . Treads 104 | 2 1 . . . 10 . . 2 . . 1 . 3 7 . 3 9 3 . 1 . . 4 . . . . . 3 . . 2 8 12 1 2 2 . 3 25 . Leg 16 | . . . 4 . . . . . . . . . 1 1 . . . . . . . 2 . . . . . . . . 5 3 . . . . . . . . . Wheel 11 | . 1 . . . . . . . . . . . . . . 2 . 1 . . . . 1 . 1 1 . 1 . . 2 . 1 . . . . . . . . Hover . | . . . . . . . . . . . . . . . . . . . . . . . . . . . . . . . . . . . . . . . . . . Flight 5 | . . . . . . . . . . . . . . . 3 . . . . . . . . . . . . . . . 2 . . . . . . . . . . Utility 303 | 3 7 . 7 . 7 2 . 1 4 10 2 1 12 21 9 4 1 6 1 4 3 2 11 2 . 2 1 . 3 . 14 2 18 19 18 3 1 3 8 72 19 Device 182 | 3 2 . 3 . 3 1 . 1 1 9 2 1 9 14 6 3 . 2 1 1 1 1 4 1 . 2 1 . 1 . 6 1 7 13 15 2 1 2 4 46 12 Storage 35 | . . . 2 . 3 . . . 1 . . . 2 2 1 . . 2 . . . . . 1 . . . . 1 . 1 . 3 3 2 . . . 1 9 1 Processor 19 | . 2 . . . . . . . . 1 . . . 1 . . . . . . . . 2 . . . . . . . 1 . 3 . . . . . . 6 3 Hackware 17 | . . . . . 1 . . . 2 . . . . 3 . . . . . 2 . . 4 . . . . . . . 2 1 . . . . . . 2 . . Protection 47 | . 3 . 2 . . 1 . . . . . . 1 1 2 1 1 2 . 1 2 1 1 . . . . . 1 . 4 . 5 2 . 1 . 1 . 11 3 Artifact 3 | . . . . . . . . . . . . . . . . . . . . . . . . . . . . . . . . . . 1 1 . . . 1 . . Weapon 235 | 3 5 1 8 2 9 1 2 4 11 5 . . 14 8 1 4 3 4 3 . . 3 9 . 2 . . . 2 1 22 2 24 11 6 2 4 7 . 36 16 Energy Gun 18 | 3 2 . . . . . . . . . . . . . . . . . . . . . . . . . . . . . . . 3 . . . . . . 10 . Energy Cannon 22 | . . . . 1 . . . . . . . . 2 . . . . . . . . . . . . . . . . . 2 . . 1 3 1 2 2 . 5 3 Ballistic Gun 116 | . . . 5 . 4 1 2 2 8 4 . . 4 6 1 4 2 4 3 . . 3 9 . 2 . . . 1 1 9 1 13 2 . . 2 5 . 10 8 Ballistic Cannon 28 | . 1 1 1 1 1 . . . . . . . 5 1 . . . . . . . . . . . . . . . . . . 2 4 3 1 . . . 2 5 Launcher 33 | . 1 . 2 . 3 . . 2 2 1 . . 2 . . . . . . . . . . . . . . . 1 . 5 . 6 1 . . . . . 7 . Special Weapon 4 | . 1 . . . . . . . . . . . . . . . . . . . . . . . . . . . . . 3 . . . . . . . . . . Impact Weapon 10 | . . . . . 1 . . . 1 . . . 1 1 . . 1 . . . . . . . . . . . . . 3 1 . 1 . . . . . . . Slashing Weapon 4 | . . . . . . . . . . . . . . . . . . . . . . . . . . . . . . . . . . 2 . . . . . 2 . Piercing Weapon . | . . . . . . . . . . . . . . . . . . . . . . . . . . . . . . . . . . . . . . . . . . Special Melee Weapon . | . . . . . . . . . . . . . . . . . . . . . . . . . . . . . . . . . . . . . . . . . . Unidentified Prototypes 62 | . . . 5 . . . . . . . . . 1 2 . . . 3 1 . 1 . . . . 3 . . . . 2 . 6 13 3 . . . . 19 3 Parts Lost 83 | . . . 1 . 1 1 . 1 1 2 2 . 10 3 5 . 2 3 . 1 . 4 4 . 1 . 2 1 1 . 19 7 1 1 1 . . . 2 1 5 Power 11 | . . . . . . . . . 1 . 1 . 1 . 1 . . 1 . . . 1 . . . . . . . . 3 . . 1 1 . . . . . . Propulsion 26 | . . . 1 . . . . 1 . . 1 . 4 3 2 . 2 2 . . . 1 . . 1 . 2 . 1 . 2 3 . . . . . . . . . Utility 15 | . . . . . . 1 . . . . . . . . 2 . . . . 1 . 1 . . . . . 1 . . 4 2 . . . . . . 2 . 1 Weapon 31 | . . . . . 1 . . . . 2 . . 5 . . . . . . . . 1 4 . . . . . . . 10 2 1 . . . . . . 1 4 Highest Loss Streak 12 | . . . 1 . 1 1 . 1 1 2 2 . 9 1 5 . 2 2 . 1 . 4 2 . 1 . 1 1 1 . 12 7 1 1 1 . . . 2 1 1 Average Slot Usage (%) 86 | . 99 100 85 100 98 99 100 98 99 99 99 100 85 96 90 99 99 89 85 85 86 86 88 94 91 87 86 72 86 89 84 57 84 88 78 81 85 86 85 78 76 Engine 1 | . 14 14 10 2 9 6 . . 5 7 3 . . 4 . . . . . . . 1 . . . . . . . . . . . . . . . . . . . Core 1 | . . . 3 11 . 2 7 7 1 . 3 7 2 . 4 6 6 . . . . . 4 5 5 2 . . . . . . . . . . . . . . . Reactor 4 | . . . . . . . . . . . . . . . . . . 4 6 6 5 2 . . . 2 5 5 9 10 6 2 8 8 6 8 7 8 8 6 4 Treads 15 | . 20 14 7 . 34 36 30 29 30 30 29 30 22 22 1 7 20 16 13 13 11 8 7 17 11 11 7 5 8 10 6 4 17 20 15 17 17 17 16 12 12 Leg 1 | . . . 8 28 . . . . . . . . . 1 6 1 . . . . . 3 . . . . . . . . 3 2 . . . . . . . . . Wheel 1 | . 7 14 9 . . . . . . . . . . . . 7 5 1 . . . . 3 . 2 2 2 3 . . 1 . . . . . . . . . . Device 11 | . 8 . 5 . 10 14 7 5 1 7 7 7 6 14 12 13 13 7 6 10 5 11 7 10 11 7 11 5 9 10 10 12 14 16 21 18 21 21 22 13 14 Storage 12 | . . . 10 14 15 18 15 15 15 15 15 15 14 13 13 13 13 18 20 20 17 17 17 16 17 17 17 15 15 15 16 2 2 5 9 14 8 8 8 10 11 Processor 7 | . 4 . . . . . . . . 7 7 7 4 6 6 6 6 6 6 6 5 5 11 12 11 11 11 10 10 10 10 10 12 13 4 4 4 4 4 9 12 Hackware 1 | . . . . . 3 . . . 11 . . . . . . . . . . 1 5 . 3 . . . . . . . 3 6 2 . . . . . 3 . . Protection 5 | . 15 28 10 14 5 2 7 7 1 . . . 2 4 3 6 6 6 6 . 9 10 4 5 5 5 5 5 10 10 4 2 6 4 3 3 4 4 3 7 5 Ballistic Gun 16 | . . . 5 . 15 18 30 29 29 29 30 30 21 22 26 26 26 26 25 26 23 22 22 23 23 23 23 21 21 21 14 2 9 4 . . 5 13 16 14 7 Ballistic Cannon 2 | . 7 18 9 14 . . . . . . . . 4 2 . . . . . . . . . . . . . . . . . . 2 7 8 8 4 . . . 4 Slashing Weapon 1 | . . . . . . . . . . . . . . . . . . . . . . . . . . . . . . . . . . 1 4 4 4 4 4 3 4 Naked Turns 7 | . . . . . . . . . . . . . 4 . . . . . . . . . . . . . . . . . . . . . . . . . . . 3 Heaviest Build 182 | 10 28 25 57 58 88 88 91 91 97 91 88 86 96 127 97 93 90 140 147 145 149 151 142 131 131 144 144 144 169 168 168 54 99 117 118 116 133 122 119 182 163 Greatest Support 240 | 40 40 10 60 60 85 85 85 85 80 80 80 80 80 96 48 20 99 160 160 160 160 160 131 131 108 108 108 80 140 140 140 54 225 225 225 220 213 198 225 240 230 Greatest Overweight (x) 50 | . 2 2 5 . 1 1 1 1 1 1 1 1 4 2 6 8 4 13 . . . 1 5 . 1 1 1 1 50 1 13 1 5 . . . . . . 2 . Average Overweight (x) . | . 1 2 2 . . . 1 1 . 1 1 1 1 1 4 5 1 3 . . . . 2 . 1 1 1 1 1 1 5 . . . . . . . . . . Largest Inventory Capacity 28 | 4 4 4 12 12 20 20 20 20 20 20 20 20 20 28 28 20 20 28 28 28 28 28 28 28 28 28 28 28 28 28 28 4 10 14 16 16 16 16 16 20 20 Average Capacity 18 | 4 4 4 9 12 17 20 20 20 20 20 20 20 19 20 20 20 20 26 28 28 28 28 28 27 28 28 28 28 28 28 27 4 6 11 14 16 16 16 16 16 19 Most Carried 28 | 4 4 4 12 12 20 20 19 19 20 20 19 19 20 22 22 20 20 28 28 28 26 28 28 27 28 28 27 28 28 28 28 4 10 14 14 16 16 16 16 20 20 Average Carried 17 | 1 3 4 8 11 15 18 17 18 19 18 18 19 17 17 19 19 19 24 26 27 24 25 24 24 26 26 25 27 27 28 21 3 5 11 12 15 14 15 15 15 17 Final Capacity 28 | 4 4 4 12 12 20 20 20 20 20 20 20 20 20 28 20 20 20 28 28 28 28 28 28 28 28 28 28 28 28 28 4 4 10 14 16 16 16 16 16 20 6 Final Carried 28 | 4 4 4 12 12 20 18 19 18 20 18 19 19 14 22 20 18 19 27 27 27 24 27 27 26 27 25 27 28 28 28 3 3 9 14 14 15 15 16 15 20 6 Class Distribution -------------------- 30% | Scavenger-Gunner 19% | Bothacker-Gunner 16% | Scavenger-Mutant 9% | Hauler-Skirmisher 5% | Mutant 4% | Scavenger-Tank 3% | Hauler-Mutant 3% | Bothacker-Mutant 3% | Hauler-Tank Dominant Class ---------------- Mutant | -10/Materials Mutant | -10/Mines Mutant | -10/Exiles Mutant | -9/Mines Hauler-Mutant | -8/Materials Hauler-Mutant | -8/Garrison Hauler-Tank | -7/Factory Hauler-Tank | -7/Garrison Hacker-Gunner | -7/Factory Hauler-Skirmisher | -7/Lower Caves Hauler-Skirmisher | -7/Lower Caves Hauler-Skirmisher | -7/Data Miner Hauler-Skirmisher | -6/Proximity Caves Scavenger-Gunner | -6/Factory Scavenger-Gunner | -6/Garrison Scavenger-Gunner | -6/Factory Scavenger-Gunner | -6/Extension Scavenger-Gunner | -6/Cetus Scavenger-Gunner | -6/Archives Scavenger-Gunner | -6/Hub_04(d) Scavenger-Gunner | -5/Factory Bothacker-Gunner | -5/Garrison Bothacker-Gunner | -5/Factory Bothacker-Gunner | -5/Upper Caves Bothacker-Gunner | -5/Upper Caves Bothacker-Gunner | -5/Zhirov Bothacker-Gunner | -4/Proximity Caves Bothacker-Gunner | -4/Factory Bothacker-Gunner | -4/Upper Caves Bothacker-Gunner | -4/Upper Caves Bothacker-Gunner | -4/Warlord Scavenger-Mutant | -3/Proximity Caves Scavenger-Gunner | -3/Research Scavenger-Mutant | -3/Quarantine Scavenger-Mutant | -3/Section 7 Scavenger-Mutant | -3/Garrison Scavenger-Tank | -2/Research Scavenger-Tank | -2/Testing Scavenger-Tank | -1/Access Scavenger-Gunner | -1/Command Scavenger-Mutant | -1/Access_0 Resources | -11 -10 -10 -10 -9 -8 -8 -7 -7 -7 -7 -7 -7 -6 -6 -6 -6 -6 -6 -6 -6 -5 -5 -5 -5 -5 -5 -4 -4 -4 -4 -4 -3 -3 -3 -3 -3 -2 -2 -1 -1 -1 ----------- Run | Scr Mat Min Exi Min Mat Gar Fac Gar Fac Low Low Dat Pro Fac Gar Fac Ext Cet Arc Hub Fac Gar Fac Upp Upp Zhi Pro Fac Upp Upp War Pro Res Qua Sec Gar Res Tes Acc Com Ac0 Matter Collected 24127 | 266 150 119 245 30 485 212 . 144 917 405 166 . 996 1254 491 166 947 849 565 352 . 738 928 384 425 . 182 . 345 192 758 74 1495 898 816 743 318 320 442 4718 1592 Remotely 2603 | 30 55 . . . . . . . . . . . . . . . . . . . . . . . . . . . . . . . . . . . . . . 1862 656 Salvage Created 31801 | 236 325 92 344 . 981 218 . 300 965 381 61 . 819 1876 429 166 957 693 562 703 . 926 1698 642 692 . 425 . 333 280 623 26 567 1586 2089 793 345 1303 671 7487 1207 Parts 1548 | 22 25 6 42 . 62 13 . 21 61 21 4 . 31 97 23 10 62 42 43 46 . 40 101 30 29 . 15 . 28 16 17 . 18 83 87 33 11 59 26 274 50 Haulers Intercepted 14 | . 2 . . . 3 . . . 1 . . . . 4 . . . . . 1 . . 1 . . . . . . . . . 1 . . . 1 . . . . Recyclers Shooed 4 | . 1 . . . 1 . . . . . . . . 1 . . . . . . . . 1 . . . . . . . . . . . . . . . . . . Parts Field Recycled 11 | . 11 . . . . . . . . . . . . . . . . . . . . . . . . . . . . . . . . . . . . . . . . Retrieved Matter 57 | . 57 . . . . . . . . . . . . . . . . . . . . . . . . . . . . . . . . . . . . . . . . Parts Self-Destructed 253 | . . . . . . . . . . 22 3 . 31 . . . . . . . . . . 33 29 . 15 . 19 15 85 1 . . . . . . . . . Prevented 43 | . . . . . . . . . . . . . . . . . . . . . . . . . . . . . . . 38 5 . . . . . . . . . Kills | -11 -10 -10 -10 -9 -8 -8 -7 -7 -7 -7 -7 -7 -6 -6 -6 -6 -6 -6 -6 -6 -5 -5 -5 -5 -5 -5 -4 -4 -4 -4 -4 -3 -3 -3 -3 -3 -2 -2 -1 -1 -1 ------- Run | Scr Mat Min Exi Min Mat Gar Fac Gar Fac Low Low Dat Pro Fac Gar Fac Ext Cet Arc Hub Fac Gar Fac Upp Upp Zhi Pro Fac Upp Upp War Pro Res Qua Sec Gar Res Tes Acc Com Ac0 Combat Hostiles Destroyed 471 | . 8 . 7 . 14 4 . 10 16 8 1 . 21 17 13 2 12 11 4 11 . 20 19 15 18 . 5 . 10 9 12 . 8 16 32 24 2 12 8 85 17 Melee 35 | . . . . . . . . . . . . . . . . . . . . . . 1 . . . . . . . . . . . . 17 3 2 5 2 5 . Guns 299 | . 2 . 4 . 10 4 . 6 15 7 1 . 7 15 13 2 12 11 4 11 . 19 19 15 18 . 5 . 5 9 8 . 2 1 . . . 4 6 56 8 Cannons 60 | . . . . . 2 . . . . . . . 3 2 . . . . . . . . . . . . . . . . . . 1 9 12 20 . 1 . 1 9 AOE 55 | . 6 . 3 . 2 . . 4 1 1 . . 11 . . . . . . . . . . . . . . . 5 . 4 . 3 . 1 . . . . 14 . Classes Destroyed 26 | 3 4 1 2 . 3 . . . 3 1 1 . 1 . . . . . . . . . . . . . . . 1 . 2 . . 1 . . . . . 3 . Worker 32 | 1 2 . . . 6 . . . 4 . . . . 2 . 1 . . . 1 . . 2 . . . . . . . . . . 1 . . . 1 . 11 . Builder 16 | . . 1 . . 2 . . . 3 . . . . 2 . . 2 . . 1 . . 3 . . . . . . . . . . 1 . . 1 . . . . Tunneler 8 | 6 1 1 . . . . . . . . . . . . . . . . . . . . . . . . . . . . . . . . . . . . . . . Hauler 14 | . 2 . . . 3 . . . 1 . . . . 4 . . . . . 1 . . 1 . . . . . . . . . 1 . . . 1 . . . . Recycler 15 | 1 1 1 . . . . . . 2 . . . . 3 . . 1 . . . . . 2 . . . . . . . . . . 1 1 . . 2 . . . Minesweeper 4 | . . . . . . . . . . . 1 . . . . . . . . . . . . 1 . . 1 . . . . 1 . . . . . . . . . Mechanic 1 | . . . . . . . . . . . . . . . . . . . . . . . . . . . . . . . . . . . . . . . . 1 . Operator 17 | . . . . . 2 . . . 2 . . . . 2 . . 1 . 7 1 . . . . . . . . . . . . . 1 1 . . . . . . Watcher 11 | . 1 . . . 1 . . . . . . . . 2 . . . 1 . 3 . . 2 . . . . . . . . . . . . . . . . 1 . Swarmer 125 | . 3 . . . . . . 6 4 3 . . 2 3 10 . 2 3 . 6 . 8 . 8 12 . . . 5 8 2 . 4 . 4 16 . . . 16 . Saboteur 1 | . . . . . . . . . . . . . . . . . . . . . . . . . . . . . . . . . . . . . . . . 1 . Grunt 139 | . 5 . . . 9 3 . 4 4 2 . . 12 5 . . 3 . . 2 . 11 4 5 5 . 3 . . . 7 . 3 . 14 5 . 6 6 21 . Brawler 12 | . . . . . . . . . 1 1 . . 3 . . . 1 . . 1 . . . . . . . . . . . . . . . . . . . 5 . Duelist 6 | . . . . . . . . . 1 . . . 1 . . . . . . . . . 1 . . . . . . . . . . . 1 . . . . 2 . Protector 4 | . . . . . . . . . . . . . 1 . . . . . . . . . 1 . . . . . . . . . . . . . . . . 2 . Sentry 41 | . . . . . 3 1 . . 2 . . . 2 2 2 2 3 . 4 1 . . 3 . 1 . 1 . . 1 . . 1 . 4 1 2 . 2 3 . Demolisher 3 | . . . . . . . . . . . . . . . . . . . . . . . . . . . . . . . 1 . . . . . . . . 2 . Hunter 40 | . . . . . 2 . . . 3 1 1 . . 3 . . . 2 . 1 . 1 5 2 . . . . . . 2 . . 3 . 2 . 4 . 8 . Programmer 44 | . . . . . . . . . 1 . . . 1 4 1 . 1 . . . . . 5 . . . . . 4 . . . . 3 7 . . 2 . 15 . Behemoth 8 | . . . . . . . . . . 1 . . 1 . . . 2 . . . . . . . . . 1 . . . . . . . . . . . . 3 . Cetus Guard 6 | . . . . . . . . . . . . . . . . . . 6 . . . . . . . . . . . . . . . . . . . . . . . Quarantine Guard 9 | . . . . . . . . . . . . . . . . . . . . . . . . . . . . . . . . . . 9 . . . . . . . S7 Guard 2 | . . . . . . . . . . . . . . . . . . . . . . . . . . . . . . . . . . . 2 . . . . . . M Guard 2 | . . . . . . . . . . . . . . . . . . . . . . . . . . . . . . . . . . . . . . . . 2 . Enhanced Grunt 5 | . . . . . . . . . . . . . . . . . . . . . . . . . . . . . . . . . . . . . . . . . 5 Enhanced Sentry 1 | . . . . . . . . . . . . . . . . . . . . . . . . . . . . . . . . . . . . . . . . . 1 Enhanced Hunter 8 | . . . . . . . . . . . . . . . . . . . . . . . . . . . . . . . . . . . . . . . . . 8 Combat Programmer 2 | . . . . . . . . . . . . . . . . . . . . . . . . . . . . . . . . . . . . . . . . 2 . Executioner 1 | . . . . . . . . . . . . . . . . . . . . . . . . . . . . . . . 1 . . . . . . . . . . Alpha 7 1 | . . . . . . . . . . . . . . . . . . . . . . . . . . . . . . . . . . . . . . . . 1 . Fortress 1 | . . . . . . . . . . . . . . . . . . . . . . . . . . . . . . . . . . 1 . . . . . . . Zionite 7 | . . . 7 . . . . . . . . . . . . . . . . . . . . . . . . . . . . . . . . . . . . . . Packrat 1 | . . . . . . . . . . 1 . . . . . . . . . . . . . . . . . . . . . . . . . . . . . . . Assembled 6 | . . . 6 . . . . . . . . . . . . . . . . . . . . . . . . . . . . . . . . . . . . . . Savage 1 | . . . . . . . . . . . . . . . . . 1 . . . . . . . . . . . . . . . . . . . . . . . . Mutant 1 | . . . . . . . . . . . . . . . . . . . . . . . . . . . . . 1 . . . . . . . . . . . . Best Kill Streak 12 | 3 7 2 8 . 7 3 . 8 4 3 1 . 11 9 12 1 6 5 6 12 . 12 5 5 4 . 3 . 6 5 6 1 2 4 10 4 2 5 4 11 3 Combat Bots Only 12 | . 5 . 6 . 5 3 . 8 4 3 1 . 11 3 12 1 4 5 2 7 . 12 4 5 4 . 3 . 6 5 6 . 2 3 10 4 1 3 4 10 3 Max Kills in Single Turn 5 | 1 2 2 3 . 2 1 . 2 2 1 1 . 2 3 2 1 2 1 2 3 . 3 3 4 2 . 1 . 3 2 2 1 2 2 1 2 1 1 2 5 1 Gunslinging 3 | . . . . . . . . 1 1 . . . . . 1 . 1 . . 2 . 2 . 3 1 . . . . 1 . . . . . . . . 1 1 . Exploded 4 | . 2 . 3 . 1 . . 2 1 1 . . 2 . . . . . . . . . . . . . . . 3 . 2 . 2 . 1 . . . . 4 . Melee 1 | . . . . . . . . . . . . . . . . . . . . . . 1 . . . . . . . . . . . . 1 1 1 1 1 1 . Uniques/NPCs Destroyed 10 | . . . 4 . . . . . . . . . . . . . . 1 . . . . . . . . . . . . . . . . . . . . . 2 3 EX-HEX (-10/Exiles) EX-BIN (-10/Exiles) EX-DEC (-10/Exiles) 8R-AWN (-10/Exiles) A7 (-6/Cetus) MAIN.C Shell (-1/Command) MAIN.C (-1/Command) A6 (-1/Access_0) A5 (-1/Access_0) Architect (-1/Access_0) Combat | -11 -10 -10 -10 -9 -8 -8 -7 -7 -7 -7 -7 -7 -6 -6 -6 -6 -6 -6 -6 -6 -5 -5 -5 -5 -5 -5 -4 -4 -4 -4 -4 -3 -3 -3 -3 -3 -2 -2 -1 -1 -1 -------- Run | Scr Mat Min Exi Min Mat Gar Fac Gar Fac Low Low Dat Pro Fac Gar Fac Ext Cet Arc Hub Fac Gar Fac Upp Upp Zhi Pro Fac Upp Upp War Pro Res Qua Sec Gar Res Tes Acc Com Ac0 Damage Taken 42365 | . 143 . 592 . 408 158 . 489 801 644 152 . 1879 954 794 180 717 1358 354 1317 . 1314 1799 649 898 . 497 328 263 302 4467 1194 844 1911 2952 888 106 805 929 5936 5343 Core 2650 | . . . 14 . 9 16 . . 60 85 12 . 178 84 100 43 57 173 . 84 . 56 37 23 53 . 59 48 13 . 444 164 42 91 176 27 14 12 36 133 307 Absorbed by Shields 14587 | . . . . . 61 27 . . . . . . . 97 . . . 111 . . . 19 . . . . . . . . . . 561 60 2821 823 107 815 810 3758 4517 Reduced by Siege Mode 1362 | . . . . . . . . . . . . . . . . . . 31 . 23 . 95 93 13 39 . 7 . . 9 148 . 17 57 114 30 . 5 34 437 210 Core Remaining (%) 70 | 100 . . . 94 . 95 . . . . . . 52 . . . . . . 36 . . . . . . 77 . . . . 37 . . . 63 . 98 . . 52 Volleys Fired 1188 | 21 27 2 3 . 43 12 . 16 36 19 4 . 52 60 19 6 25 36 17 22 . 35 46 22 25 . 16 1 11 9 42 4 38 52 50 43 1 21 18 171 163 Largest 4 | 1 2 2 1 . 2 2 . 4 4 4 4 . 4 4 4 4 4 4 4 4 . 4 4 4 4 . 4 4 4 4 4 1 4 4 2 2 4 4 4 4 4 Hottest 313 | 50 100 78 39 . 80 56 . 112 120 112 109 . 154 154 112 112 112 107 133 133 . 133 132 132 132 . 132 132 132 132 147 30 197 205 94 94 279 279 128 313 285 Shots Fired 3472 | 21 36 3 91 . 76 24 . 46 138 67 16 . 120 195 76 24 100 144 68 86 . 137 172 88 100 . 64 4 35 36 89 4 94 107 84 81 4 62 72 597 311 Gun 2874 | 21 18 . 88 . 66 24 . 40 134 66 16 . 72 167 76 24 100 144 68 86 . 137 172 88 100 . 64 4 32 36 70 . 68 42 . . 2 42 72 553 182 Cannon 484 | . 2 2 1 . 6 . . . . . . . 31 28 . . . . . . . . . . . . . . . . 6 . 12 62 84 81 2 20 . 18 129 Launcher 103 | . 13 1 2 . 4 . . 6 4 1 . . 17 . . . . . . . . . . . . . . . 3 . 9 . 14 3 . . . . . 26 . Special 11 | . 3 . . . . . . . . . . . . . . . . . . . . . . . . . . . . . 4 4 . . . . . . . . . Kinetic 3071 | . 2 2 89 . 66 24 . 40 134 66 16 . 99 195 76 24 100 144 68 86 . 137 172 88 100 . 64 4 32 36 70 . 64 80 70 76 2 42 72 429 302 Thermal 96 | 21 21 . . . 6 . . . . . . . . . . . . . . . . . . . . . . . . . 4 . 16 . . . 1 10 . 8 9 Explosive 60 | . 13 1 2 . 4 . . 6 4 1 . . 17 . . . . . . . . . . . . . . . 3 . 9 . . . . . . . . . . Electromagnetic 237 | . . . . . . . . . . . . . 4 . . . . . . . . . . . . . . . . . 2 . 14 27 14 5 1 10 . 160 . Robot Hit Streak 69 | 7 12 3 21 . 14 14 . 7 9 15 10 . 15 24 20 31 15 55 41 31 . 36 44 20 15 . 13 3 14 12 54 24 11 30 10 18 3 19 21 69 61 Robot Miss Streak 7 | 2 1 . 2 . 2 2 . 2 5 4 4 . 6 2 3 1 6 7 4 2 . 6 4 2 3 . 3 1 1 1 1 1 4 2 3 2 . 3 1 6 3 Penetration Max 2 | . . . . . 1 . . . 1 . . . . 2 . . . . 1 1 . 1 1 1 1 . 1 . 1 1 1 . 1 1 . . . 1 1 1 . Secondary Targets 77 | . . . . . 1 1 . 3 2 1 . . 3 1 8 . 4 2 1 6 . 6 3 5 7 . 2 . . 3 4 . 1 . . . . . 3 8 2 Max Gunslinging Chain 3 | . . . . . 1 1 . 1 1 1 . . 1 1 2 . 1 1 1 2 . 2 1 3 1 . 1 . . 1 1 . 1 . . . . . 2 1 1 Autonomous 88 | . . . 88 . . . . . . . . . . . . . . . . . . . . . . . . . . . . . . . . . . . . . . Shots Hit Robots 2744 | 17 21 3 77 . 54 17 . 22 87 51 14 . 68 136 61 15 96 131 54 59 . 98 134 64 65 . 49 3 14 20 69 4 56 72 108 69 9 55 76 506 290 Core Hits 1922 | 10 23 4 25 . 40 8 . 22 57 32 8 . 76 58 36 11 118 148 66 36 . 58 80 29 27 . 23 1 15 12 45 . 44 37 47 29 3 26 26 412 230 Critical Hits 271 | . . . 3 . 1 . . . 2 2 . . 9 20 1 . . . . 14 . 12 11 6 7 . 12 . 4 2 4 . 10 25 15 6 3 7 5 56 34 Critical Kills 87 | . . . . . . . . . 1 . . . 3 8 1 . . . . 6 . 6 4 3 3 . 2 . 2 1 . . 1 11 4 2 2 3 1 19 4 Critical Parts Destroyed 152 | . . . 1 . 1 . . . 1 2 . . 6 11 . . . . . 8 . 6 7 3 4 . 6 . 2 1 4 . 5 10 11 3 1 4 4 29 22 Melee Attacks 266 | . . . . . 1 . . . 1 . . . 3 1 . . 1 . . . . . . . . . . . . . 20 1 . 14 82 18 8 16 31 67 2 Kinetic 1 | . . . . . . . . . . . . . . . . . . . . . . . . . . . . . . . . . . 1 . . . . . . . Impact 28 | . . . . . 1 . . . 1 . . . 3 1 . . 1 . . . . . . . . . . . . . 20 1 . . . . . . . . . Slashing 237 | . . . . . . . . . . . . . . . . . . . . . . . . . . . . . . . . . . 13 82 18 8 16 31 67 2 Piercing . | . . . . . . . . . . . . . . . . . . . . . . . . . . . . . . . . . . . . . . . . . . Sneak Attacks 12 | . . . . . . . . . . . . . . . . . . . . . . . . . . . . . . . . 1 . . 1 1 3 2 1 3 . Combat Hostiles 1 | . . . . . . . . . . . . . . . . . . . . . . . . . . . . . . . . . . . . 1 . . . . . Follow-up Attacks . | . . . . . . . . . . . . . . . . . . . . . . . . . . . . . . . . . . . . . . . . . . Damage Inflicted 92438 | 237 1131 147 2458 . 1858 356 . 1143 1850 1082 127 . 2927 3227 1173 303 2311 2652 1559 1499 . 2155 3459 1342 1380 . 1314 115 957 476 3265 124 2335 1917 6685 3416 992 2535 2509 16634 14788 Guns 53223 | 226 174 . 2276 . 1295 356 . 413 1532 958 124 . 818 2655 1167 303 2308 2640 1544 1499 . 2141 3448 1342 1380 . 1272 75 419 476 1388 . 1175 550 . . 51 712 1348 11652 5506 Cannons 17023 | . 19 42 . . 78 . . . . . . . 437 465 . . . . . . . . . . . . . . . . 105 . 231 1324 1836 2198 41 554 . 510 9183 Explosions 9542 | . 936 99 182 . 373 . . 730 203 116 . . 1672 . . . . . . . . . . . . . . . 538 . 1750 . 923 . 58 . . . . 1962 . Melee 11968 | . . . . . . . . . . . . . . . . . . . . . . . . . . . . . . . . 124 . . 4791 1205 900 1240 1161 2448 99 Ramming 682 | 11 2 6 . . 112 . . . 115 8 3 . . 107 6 . 3 12 15 . . 14 11 . . . 42 40 . . 22 . 6 43 . 13 . 29 . 62 . Kinetic 65370 | . 19 42 2276 . 1295 356 . 413 1532 958 124 . 1132 3120 1167 303 2308 2640 1544 1499 . 2141 3448 1342 1380 . 1272 75 419 476 1388 . 1130 1078 1610 2030 51 712 1348 10388 14354 Thermal 2310 | 226 174 . . . 78 . . . . . . . . . . . . . . . . . . . . . . . . . 33 . 423 . . . 41 249 . 751 335 Explosive 6657 | . 936 99 182 . 373 . . 730 203 116 . . 1672 . . . . . . . . . . . . . . . 538 . 1750 . . . 58 . . . . . . Electromagnetic 5451 | . . . . . . . . . . . . . 123 . . . . . . . . . . . . . . . . . 72 . 776 796 226 168 . 305 . 2985 . Impact 124 | . . . . . . . . . . . . . . . . . . . . . . . . . . . . . . . . 124 . . . . . . . . . Slashing 11844 | . . . . . . . . . . . . . . . . . . . . . . . . . . . . . . . . . . . 4791 1205 900 1240 1161 2448 99 Piercing . | . . . . . . . . . . . . . . . . . . . . . . . . . . . . . . . . . . . . . . . . . . Highest Corruption 9 | . . . . . . . . . . . . . 1 2 5 1 . . . . . . 2 . . . . . . . 4 . . 9 1 . . 1 2 9 3 Average Corruption 2 | . . . . . . . . . . . . . 1 1 2 1 . . . . . . 1 . . . . . . . 2 . . 4 1 . . 1 1 3 2 Corruption Purged 50 | . . . . . . . . . . . . . 1 2 7 1 . . . . . . 2 . . . . . . . 4 . . 9 2 . . . 3 19 . Effects 145 | . . . . . . . . . . . . . 1 2 11 . . . . . . . 5 . . . . . . . 7 . . 11 . . . . 2 81 25 Message Errors 38 | . . . . . . . . . . . . . 1 1 3 . . . . . . . . . . . . . . . 3 . . . . . . . 1 21 8 Matter Fused 30 | . . . . . . . . . . . . . . . 5 . . . . . . . . . . . . . . . 1 . . 3 . . . . . 16 5 Heat Flow Errors 14 | . . . . . . . . . . . . . . . . . . . . . . . . . . . . . . . 1 . . 3 . . . . . 9 1 Energy Discharges 9 | . . . . . . . . . . . . . . . 1 . . . . . . . 1 . . . . . . . 1 . . 1 . . . . 1 3 1 Data Loss (minor) 15 | . . . . . . . . . . . . . . 1 2 . . . . . . . 1 . . . . . . . 1 . . 1 . . . . . 8 1 Data Loss (major) 1 | . . . . . . . . . . . . . . . . . . . . . . . . . . . . . . . . . . . . . . . . 1 . Misfires 3 | . . . . . . . . . . . . . . . . . . . . . . . . . . . . . . . . . . 2 . . . . . 1 . Targeting Errors 28 | . . . . . . . . . . . . . . . . . . . . . . . 3 . . . . . . . . . . 1 . . . . . 16 8 Weapon Failures 7 | . . . . . . . . . . . . . . . . . . . . . . . . . . . . . . . . . . . . . . . . 6 1 Overload Shots 4 | . . . . . . . . . . . . . . . . . . . . . . . . . . . . . . . . . 1 . . . . . . . 3 Effects 1 | . . . . . . . . . . . . . . . . . . . . . . . . . . . . . . . . . . . . . . . . . 1 Short Circuit 1 | . . . . . . . . . . . . . . . . . . . . . . . . . . . . . . . . . . . . . . . . . 1 Overflow Damage 3060 | . 29 . . . 24 . . 33 29 16 . . 33 27 . . . . 5 . . . . . . . 9 . 18 . 221 94 11 . 584 181 370 252 55 261 808 Projectiles 974 | . . . . . . . . . . . . . . . . . . . . . . . . . . . . . . . . . . . 33 133 . . . . 808 Explosions 392 | . 29 . . . 24 . . 33 . 16 . . 33 . . . . . . . . . . . . . . . 18 . 221 . 11 . . . . . . 7 . Melee 1694 | . . . . . . . . . 29 . . . . 27 . . . . 5 . . . . . . . 9 . . . . 94 . . 551 48 370 252 55 254 . Knockbacks 92 | . . 1 . . . . . . 2 . . . 1 2 . . . . . . . . . . . . . . . . . 1 5 5 11 13 . . . 1 50 Impact 5 | . . . . . . . . . 2 . . . . . . . . . . . . . . . . . . . . . . 1 . 1 . . . . . 1 . Kinetic 86 | . . 1 . . . . . . . . . . 1 2 . . . . . . . . . . . . . . . . . . 5 4 10 13 . . . . 50 Secondary 1 | . . . . . . . . . . . . . . . . . . . . . . . . . . . . . . . . . . . 1 . . . . . . Self-Inflicted Damage 489 | . 37 . . . 45 . . 27 . . . . . . . . . . . . . . . . . . . . . . . . . . 69 . . . . 311 . Shots 16 | . 1 . . . 1 . . 2 . . . . . . . . . . . . . . . . . . . . . . . . . . 1 . . . . 11 . Rammed 51 | 9 1 1 . . 5 . . . 5 . . . . 4 1 . 1 . 1 . . 1 3 . . . 4 2 . . 2 . 1 3 . . . 5 . 2 . Targets Rammed 66 | 9 1 1 . . 8 . . . 8 1 1 . . 6 1 . 1 1 1 . . 2 3 . . . 4 2 . . 2 . 1 4 . 1 . 5 . 3 . Kicked . | . . . . . . . . . . . . . . . . . . . . . . . . . . . . . . . . . . . . . . . . . . Crushed 15 | . . . . . 3 . . . 3 1 1 . . 2 . . . 1 . . . 1 . . . . . . . . . . . 1 . 1 . . . 1 . Highest Temperature 339 | . 120 51 . . 173 118 . 309 135 . . . 259 310 94 46 33 286 . 78 . 130 247 315 176 . 2 34 38 6 119 . 306 338 115 60 138 224 3 339 157 Average Temperature 78 | . 40 22 . . 38 53 . 141 39 . . . 60 96 36 14 13 104 . 31 . 47 79 82 65 . 1 25 28 4 64 . 70 102 53 42 70 95 3 102 71 Received Heat Transfer 4143 | . 48 . . . 141 90 . 81 78 141 . . 555 84 48 66 147 . 63 99 . 316 138 84 150 . 81 . 9 9 444 243 70 18 408 83 16 56 110 243 24 Effects 4 | . . . . . . . . 1 . . . . . 2 . . . . . . . . . 1 . . . . . . . . . . . . . . . . . Energy Bleed 4 | . . . . . . . . 1 . . . . . 2 . . . . . . . . . 1 . . . . . . . . . . . . . . . . . Siege Activations 82 | . . . . . . . . . . . . . . . . . . 1 1 2 . 4 5 3 5 . 1 . 2 2 3 . 2 6 6 7 . 2 2 20 8 Total Turns 3090 | . . . . . . . . . . . . . . . . . . 27 20 28 . 58 75 22 54 . 12 . 8 12 194 . 18 436 202 56 . 20 21 1702 125 Longest Duration 1029 | . . . . . . . . . . . . . . . . . . 27 20 17 . 22 22 9 20 . 12 . 5 8 158 . 15 395 76 13 . 18 13 1029 30 Robots Corrupted 20 | . . . . . . . . . . . . . . . . . . . . . . . . . . . . . . . . . 1 5 2 1 . 2 . 9 . Combat Hostiles 20 | . . . . . . . . . . . . . . . . . . . . . . . . . . . . . . . . . 1 5 2 1 . 2 . 9 . Parts Fried 66 | . . . . . . . . . 3 . . . 1 . . . . . . . . . . . . . . . . . . 2 6 19 1 3 . 3 . 28 . Impact Corruptions 11 | . . . . . . . . . 2 1 . . . 2 . . . . 1 . . . . . . . 2 . . . . 3 . . . . . . . . . Robots Melted 1 | . . . . . . . . . . . . . . . . . . . . . . . . . . . . . . . . . 1 . . . . . . . . Combat Hostiles 1 | . . . . . . . . . . . . . . . . . . . . . . . . . . . . . . . . . 1 . . . . . . . . Parts Melted 8 | 2 2 . . . . . . . . . . . . . . . . . . . . . . . . . . . . . 1 . 1 1 . . . . . 1 . Heat Transferred 2888 | 666 518 . . . 150 . . . . . . . . . . . . . . . . . . . . . . . . . 50 . 683 . . . 37 222 . 496 66 Parts Sabotaged . | . . . . . . . . . . . . . . . . . . . . . . . . . . . . . . . . . . . . . . . . . . Parts Stolen . | . . . . . . . . . . . . . . . . . . . . . . . . . . . . . . . . . . . . . . . . . . Parts Stripped . | . . . . . . . . . . . . . . . . . . . . . . . . . . . . . . . . . . . . . . . . . . Power Chain Reactions 11 | . . . . . . . . . . . . . . . . . . . . . . . . . . . . . . . . . 4 . . . . . . 7 . Missiles Intercepted . | . . . . . . . . . . . . . . . . . . . . . . . . . . . . . . . . . . . . . . . . . . Alert | -11 -10 -10 -10 -9 -8 -8 -7 -7 -7 -7 -7 -7 -6 -6 -6 -6 -6 -6 -6 -6 -5 -5 -5 -5 -5 -5 -4 -4 -4 -4 -4 -3 -3 -3 -3 -3 -2 -2 -1 -1 -1 ------- Run | Scr Mat Min Exi Min Mat Gar Fac Gar Fac Low Low Dat Pro Fac Gar Fac Ext Cet Arc Hub Fac Gar Fac Upp Upp Zhi Pro Fac Upp Upp War Pro Res Qua Sec Gar Res Tes Acc Com Ac0 Peak Influence 986 | 40 377 85 . 32 445 369 193 410 852 . . . . 322 301 252 201 288 324 583 300 755 553 . . . . 29 . . . . 390 249 630 986 651 520 401 971 . Initial 554 | . 26 70 . . 12 289 193 135 214 . . . . 77 36 157 123 25 115 113 285 210 396 . . . . 16 . . . . 114 132 96 408 554 366 264 149 . Average 298 | 19 145 78 . 4 229 328 193 304 417 . . . . 117 264 190 108 164 279 408 291 546 443 . . . . 9 . . . . 208 124 449 758 615 390 289 418 . Maximum Alert Level 4 | . 1 . . . 2 1 . 2 3 . . . . 1 1 1 1 1 1 2 1 3 2 . . . . . . . . . 1 1 2 3 2 2 2 4 . Low Security (%) 29 | 100 80 100 . 100 37 . 100 30 22 . . . . 86 14 51 92 46 12 11 . . . . . . . 100 . . . . 34 86 7 . . . . 8 . Level 1 26 | . 19 . . . 57 100 . 40 37 . . . . 13 85 48 7 53 87 26 100 20 20 . . . . . . . . . 65 13 13 . . 66 95 6 . Level 2 13 | . . . . . 4 . . 28 10 . . . . . . . . . . 61 . 41 79 . . . . . . . . . . . 78 31 100 33 4 2 . Level 3 6 | . . . . . . . . . 29 . . . . . . . . . . . . 37 . . . . . . . . . . . . . 68 . . . 7 . Level 4 22 | . . . . . . . . . . . . . . . . . . . . . . . . . . . . . . . . . . . . . . . . 74 . Level 5 . | . . . . . . . . . . . . . . . . . . . . . . . . . . . . . . . . . . . . . . . . . . High Security . | . . . . . . . . . . . . . . . . . . . . . . . . . . . . . . . . . . . . . . . . . . Max Security . | . . . . . . . . . . . . . . . . . . . . . . . . . . . . . . . . . . . . . . . . . . Squads Dispatched 69 | . 3 . . 1 4 . . . 9 . . . 1 6 . . . . . 3 . . 4 . . . . 2 . . . . 3 1 9 . . 5 5 13 . Investigation 13 | . 1 . . 1 1 . . . 3 . . . . . . . . . . 1 . . . . . . . 2 . . . . . . . . . . . 4 . Extermination 19 | . . . . . . . . . 1 . . . . 2 . . . . . . . . 2 . . . . . . . . . . 1 3 . . 2 2 6 . Reinforcement 27 | . 2 . . . 3 . . . 4 . . . . 4 . . . . . 2 . . 1 . . . . . . . . . 3 . 4 . . 2 2 . . Assault 8 | . . . . . . . . . . . . . 1 . . . . . . . . . 1 . . . . . . . . . . . 2 . . 1 . 3 . Garrison 2 | . . . . . . . . . 1 . . . . . . . . . . . . . . . . . . . . . . . . . . . . . 1 . . Intercept . | . . . . . . . . . . . . . . . . . . . . . . . . . . . . . . . . . . . . . . . . . . Construction Impeded 1 | . . . . . . . . . . . . . . 1 . . . . . . . . . . . . . . . . . . . . . . . . . . . Haulers Reinforced 4 | . . . . . . . . . . . . . . 2 . . . . . . . . 1 . . . . . . . . . 1 . . . . . . . . Stealth | -11 -10 -10 -10 -9 -8 -8 -7 -7 -7 -7 -7 -7 -6 -6 -6 -6 -6 -6 -6 -6 -5 -5 -5 -5 -5 -5 -4 -4 -4 -4 -4 -3 -3 -3 -3 -3 -2 -2 -1 -1 -1 --------- Run | Scr Mat Min Exi Min Mat Gar Fac Gar Fac Low Low Dat Pro Fac Gar Fac Ext Cet Arc Hub Fac Gar Fac Upp Upp Zhi Pro Fac Upp Upp War Pro Res Qua Sec Gar Res Tes Acc Com Ac0 Distress Signals 46 | . . . . . 2 . . . . . . . . 1 . . 2 2 . 1 . . 1 1 . . . . . . 1 . 6 . 4 . 1 . 3 21 . Communications Jammed 11 | . . . . . . . . . . . . . . . . . . . . . . . . . . . . . . . . . . . . . 1 . 10 . . Distress Signals 11 | . . . . . . . . . . . . . . . . . . . . . . . . . . . . . . . . . . . . . 1 . 10 . . Times Spotted 804 | . 10 . 14 . 34 4 . 13 28 11 1 . 34 29 14 2 19 15 13 23 1 26 28 18 24 . 5 2 7 10 53 24 30 20 75 25 3 20 22 95 52 Peak Tracking Total 22 | . 4 . 9 . 5 3 . 7 7 4 1 . 7 4 6 1 6 5 2 6 1 13 8 5 4 . 3 2 2 5 22 10 6 4 14 4 2 8 8 8 5 Tactical Retreats 61 | . . . . . 6 . . 2 2 2 . . 6 2 . . 1 . . . . 4 . 2 5 . 1 . . 1 . 5 2 . 9 2 . . 4 5 . Traps | -11 -10 -10 -10 -9 -8 -8 -7 -7 -7 -7 -7 -7 -6 -6 -6 -6 -6 -6 -6 -6 -5 -5 -5 -5 -5 -5 -4 -4 -4 -4 -4 -3 -3 -3 -3 -3 -2 -2 -1 -1 -1 ------- Run | Scr Mat Min Exi Min Mat Gar Fac Gar Fac Low Low Dat Pro Fac Gar Fac Ext Cet Arc Hub Fac Gar Fac Upp Upp Zhi Pro Fac Upp Upp War Pro Res Qua Sec Gar Res Tes Acc Com Ac0 Traps Triggered 25 | . . . . . 1 . . 1 1 . . . . 3 1 1 . . . 1 . 2 . . . . . 2 . . 2 1 . 3 . . . . 3 3 . Indirectly 3 | . . . . . . . . . . . . . . . . . . . . . . . . . . . . . . . . . . 2 . . . . . 1 . Trap Hack Attempts . | . . . . . . . . . . . . . . . . . . . . . . . . . . . . . . . . . . . . . . . . . . Triggered . | . . . . . . . . . . . . . . . . . . . . . . . . . . . . . . . . . . . . . . . . . . Disarmed . | . . . . . . . . . . . . . . . . . . . . . . . . . . . . . . . . . . . . . . . . . . Reprogrammed . | . . . . . . . . . . . . . . . . . . . . . . . . . . . . . . . . . . . . . . . . . . Reused 5 | . . . . . . . . . . . . . . . . . . . . . . . . . . . . . . . 2 3 . . . . . . . . . Traps Extracted . | . . . . . . . . . . . . . . . . . . . . . . . . . . . . . . . . . . . . . . . . . . Installed 9 | . . . . . . . . . . . . . . . . . . . . . . . . . . . . . . . 5 4 . . . . . . . . . Triggered 42 | . . . . . . . . . . . . . . . . . . . . . . . . 2 . . 1 . . . 35 3 . . . . . 1 . . . Machines | -11 -10 -10 -10 -9 -8 -8 -7 -7 -7 -7 -7 -7 -6 -6 -6 -6 -6 -6 -6 -6 -5 -5 -5 -5 -5 -5 -4 -4 -4 -4 -4 -3 -3 -3 -3 -3 -2 -2 -1 -1 -1 ---------- Run | Scr Mat Min Exi Min Mat Gar Fac Gar Fac Low Low Dat Pro Fac Gar Fac Ext Cet Arc Hub Fac Gar Fac Upp Upp Zhi Pro Fac Upp Upp War Pro Res Qua Sec Gar Res Tes Acc Com Ac0 Machines Disabled 77 | . 5 . 9 . 3 . . . 8 . . . 2 1 . . . . 3 2 . 1 1 . . . . . 1 . . . 4 11 10 2 . 1 1 7 5 Max in Single Turn 3 | . 3 . 1 . 1 . . . 3 . . . 1 1 . . . . 2 1 . 1 1 . . . . . 1 . . . 1 1 1 1 . 1 1 1 1 Garrison Access 4 | . . . . . . . . . 1 . . . . . . . . . . . . . . . . . . 1 . . . . 1 . . . . . 1 . . Garrison Relay 2 | . . . . . . . . . . . . . . . . . . . . . . 1 . . . . . . . . . . . . . 1 . . . . . Network Hub 2 | . . . . . . . . . . . . . . . . . . . . 2 . . . . . . . . . . . . . . . . . . . . . Machines Sabotaged 1 | . . . . . . . . . . . . . . . . . . . . 1 . . . . . . . . . . . . . . . . . . . . . Garrisons Compromised . | . . . . . . . . . . . . . . . . . . . . . . . . . . . . . . . . . . . . . . . . . . Overloaded Fab Kills . | . . . . . . . . . . . . . . . . . . . . . . . . . . . . . . . . . . . . . . . . . . Fab Network Shutdowns 2 | . . . . . . . . . 1 . . . . . . . . . . . . . . . . . . . . . . . 1 . . . . . . . . Hacking | -11 -10 -10 -10 -9 -8 -8 -7 -7 -7 -7 -7 -7 -6 -6 -6 -6 -6 -6 -6 -6 -5 -5 -5 -5 -5 -5 -4 -4 -4 -4 -4 -3 -3 -3 -3 -3 -2 -2 -1 -1 -1 --------- Run | Scr Mat Min Exi Min Mat Gar Fac Gar Fac Low Low Dat Pro Fac Gar Fac Ext Cet Arc Hub Fac Gar Fac Upp Upp Zhi Pro Fac Upp Upp War Pro Res Qua Sec Gar Res Tes Acc Com Ac0 Machines Accessed 75 | . 4 . 2 1 5 . 1 . 7 . . 3 . 5 . . 4 . . 1 1 . 5 . . 4 . 4 . . . . 6 6 9 . 1 3 2 1 . Terminals 40 | . 3 . . . 3 . . . 5 . . . . 1 . . 4 . . 1 . . 3 . . . . 1 . . . . 2 5 7 . 1 2 1 1 . Fabricators 7 | . . . . . . . . . 1 . . . . 2 . . . . . . . . 1 . . . . 1 . . . . 2 . . . . . . . . Repair Stations 2 | . . . . . . . . . . . . . . . . . . . . . . . 1 . . . . . . . . . 1 . . . . . . . . Recycling Units 1 | . 1 . . . . . . . . . . . . . . . . . . . . . . . . . . . . . . . . . . . . . . . . Scanalyzers 6 | . . . . . 1 . . . . . . . . 1 . . . . . . . . . . . . . 1 . . . . . 1 1 . . 1 . . . Garrison Access 9 | . . . . . 1 . 1 . 1 . . . . 1 . . . . . . 1 . . . . . . 1 . . . . 1 . 1 . . . 1 . . Total Hacks 272 | . 15 . 2 1 23 . 2 . 20 . . 19 . 10 . . 11 . . 3 1 . 25 . . 17 . 15 . . . . 34 22 25 . 4 17 5 1 . Successful 147 | . 12 . 2 1 18 . 2 . 7 . . 19 . 7 . . 3 . . 3 1 . 14 . . 17 . 6 . . . . 13 2 8 . 3 6 2 1 . Failed 125 | . 3 . . . 5 . . . 13 . . . . 3 . . 8 . . . . . 11 . . . . 9 . . . . 21 20 17 . 1 11 3 . . Catastrophic 23 | . . . . . . . . . 3 . . . . . . . 1 . . . . . 2 . . . . 4 . . . . 5 5 3 . . . . . . Database Lockouts . | . . . . . . . . . . . . . . . . . . . . . . . . . . . . . . . . . . . . . . . . . . Manual 95 | . 9 . 1 . 9 . . . 3 1 . . . . . . 8 . . 2 . . 15 . . . . 5 . . . . 9 12 14 . 1 6 . . . Terminals 167 | . 12 . . . 14 . . . 16 . . . . 2 . . 11 . . 3 . . 21 . . . . 4 . . . . 23 19 18 . 4 15 4 1 . Fabricators 25 | . . . . . . . . . 3 . . . . 5 . . . . . . . . 1 . . . . 8 . . . . 8 . . . . . . . . Repair Stations 4 | . . . . . . . . . . . . . . . . . . . . . . . 3 . . . . . . . . . 1 . . . . . . . . Recycling Units 3 | . 3 . . . . . . . . . . . . . . . . . . . . . . . . . . . . . . . . . . . . . . . . Scanalyzers 23 | . . . . . 8 . . . . . . . . 2 . . . . . . . . . . . . . 2 . . . . . 3 6 . . 2 . . . Garrison Access 11 | . . . . . 1 . 2 . 1 . . . . 1 . . . . . . 1 . . . . . . 1 . . . . 2 . 1 . . . 1 . . Terminal Hacks 88 | . 5 . 2 1 7 . . . 3 . . 19 . 1 . . 2 . . 1 . . 9 . . 17 . 3 . . . . 5 1 4 . 2 4 1 1 . Record 9 | . . . 1 . . . . . . . . 3 . . . . . . . . . . . . . 5 . . . . . . . . . . . . . . . Part Schematic 11 | . . . . . . . . . . . . 7 . . . . . . . . . . . . . 4 . . . . . . . . . . . . . . . Robot Schematic 6 | . . . . . . . . . . . . 6 . . . . . . . . . . . . . . . . . . . . . . . . . . . . . Robot Analysis 5 | . 1 . . . . . . . . . . . . . . . . . . . . . . . . 4 . . . . . . . . . . . . . . . Prototype ID Bank 20 | . 1 . . . 2 . . . . . . 3 . . . . 2 . . . . . 3 . . 4 . 3 . . . . . 1 . . . 1 . . . Open Door 5 | . . . . 1 . . . . . . . . . . . . . . . . . . . . . . . . . . . . . . 3 . . . . 1 . Branch Access Points 5 | . . . . . 1 . . . 1 . . . . . . . . . . . . . 1 . . . . . . . . . 1 . . . 1 . . . . Emergency Access Points 2 | . 1 . . . . . . . . . . . . . . . . . . . . . . . . . . . . . . . 1 . . . . . . . . Machine Index 1 | . . . . . . . . . . . . . . . . . . . . . . . 1 . . . . . . . . . . . . . . . . . . Terminal Index 4 | . 1 . . . 1 . . . . . . . . . . . . . . . . . 1 . . . . . . . . . . . . . . . 1 . . Repair Station Index 1 | . . . . . . . . . 1 . . . . . . . . . . . . . . . . . . . . . . . . . . . . . . . . Garrison Index 1 | . . . . . 1 . . . . . . . . . . . . . . . . . . . . . . . . . . . . . . . . . . . . Alert Level 2 | . . . . . 2 . . . . . . . . . . . . . . . . . . . . . . . . . . . . . . . . . . . . Unreport Threat 4 | . . . . . . . . . 1 . . . . 1 . . . . . . . . 1 . . . . . . . . . . . 1 . . . . . . Locate Traps 6 | . 1 . . . . . . . . . . . . . . . . . . 1 . . 2 . . . . . . . . . . . . . 1 1 . . . Hauler Manifests 1 | . . . . . . . . . . . . . . . . . . . . . . . . . . . . . . . . . 1 . . . . . . . . Registered Components 1 | . . . . . . . . . . . . . . . . . . . . . . . . . . . . . . . . . 1 . . . . . . . . Zone Layout 2 | . . . . . . . . . . . . . . . . . . . . . . . . . . . . . . . . . 1 . . . . 1 . . . EX-Prototype ID Bank 1 | . . . 1 . . . . . . . . . . . . . . . . . . . . . . . . . . . . . . . . . . . . . . Protovariant Controls 1 | . . . . . . . . . . . . . . . . . . . . . . . . . . . . . . . . . . . . . . 1 . . . Fabricator Hacks 9 | . . . . . . . . . 2 . . . . 3 . . . . . . . . . . . . . 1 . . . . 3 . . . . . . . . Load Schematic 4 | . . . . . . . . . 1 . . . . 1 . . . . . . . . . . . . . 1 . . . . 1 . . . . . . . . Build 5 | . . . . . . . . . 1 . . . . 2 . . . . . . . . . . . . . . . . . . 2 . . . . . . . . Repair Station Hacks 3 | . . . . . . . . . . . . . . . . . . . . . . . 2 . . . . . . . . . 1 . . . . . . . . Scan Component 1 | . . . . . . . . . . . . . . . . . . . . . . . 1 . . . . . . . . . . . . . . . . . . Repair 1 | . . . . . . . . . . . . . . . . . . . . . . . 1 . . . . . . . . . . . . . . . . . . Refit 1 | . . . . . . . . . . . . . . . . . . . . . . . . . . . . . . . . . 1 . . . . . . . . Recycling Unit Hacks 2 | . 2 . . . . . . . . . . . . . . . . . . . . . . . . . . . . . . . . . . . . . . . . Report Inventory 1 | . 1 . . . . . . . . . . . . . . . . . . . . . . . . . . . . . . . . . . . . . . . . Retrieve Components 1 | . 1 . . . . . . . . . . . . . . . . . . . . . . . . . . . . . . . . . . . . . . . . Scanalyzer 13 | . . . . . 8 . . . . . . . . 2 . . . . . . . . . . . . . . . . . . . . 2 . . 1 . . . Insert Component 8 | . . . . . 4 . . . . . . . . 1 . . . . . . . . . . . . . . . . . . . . 2 . . 1 . . . Analyze 5 | . . . . . 4 . . . . . . . . 1 . . . . . . . . . . . . . . . . . . . . . . . . . . . Garrison Access Hacks 11 | . . . . . 1 . 2 . 1 . . . . 1 . . . . . . 1 . . . . . . 1 . . . . 2 . 1 . . . 1 . . Unlock Access 5 | . . . . . 1 . 1 . . . . . . 1 . . . . . . 1 . . . . . . . . . . . . . 1 . . . . . . Seal Access 4 | . . . . . . . . . 1 . . . . . . . . . . . . . . . . . . 1 . . . . 1 . . . . . 1 . . Coupler Status 2 | . . . . . . . 1 . . . . . . . . . . . . . . . . . . . . . . . . . 1 . . . . . . . . Unauthorized Hacks 21 | . 5 . . . 2 . . . 1 . . . . . . . 1 . . 2 . . 3 . . . . 1 . . . . 2 1 1 . 1 1 . . . Terminals 16 | . 4 . . . 2 . . . . . . . . . . . 1 . . 2 . . 2 . . . . . . . . . 2 1 . . 1 1 . . . Track 4 | . 2 . . . . . . . . . . . . . . . . . . . . . . . . . . . . . . . 1 . . . . 1 . . . Botnet 9 | . 1 . . . 2 . . . . . . . . . . . 1 . . 1 . . 1 . . . . . . . . . 1 1 . . 1 . . . . Operators 2 | . 1 . . . . . . . . . . . . . . . . . . . . . 1 . . . . . . . . . . . . . . . . . . Sabotage 1 | . . . . . . . . . . . . . . . . . . . . 1 . . . . . . . . . . . . . . . . . . . . . Fabricators 2 | . . . . . . . . . 1 . . . . . . . . . . . . . 1 . . . . . . . . . . . . . . . . . . Report 1 | . . . . . . . . . . . . . . . . . . . . . . . 1 . . . . . . . . . . . . . . . . . . Prioritize 1 | . . . . . . . . . 1 . . . . . . . . . . . . . . . . . . . . . . . . . . . . . . . . Repair Stations . | . . . . . . . . . . . . . . . . . . . . . . . . . . . . . . . . . . . . . . . . . . Recycling Units 1 | . 1 . . . . . . . . . . . . . . . . . . . . . . . . . . . . . . . . . . . . . . . . Tunnel 1 | . 1 . . . . . . . . . . . . . . . . . . . . . . . . . . . . . . . . . . . . . . . . Scanalyzers 2 | . . . . . . . . . . . . . . . . . . . . . . . . . . . . 1 . . . . . . 1 . . . . . . Researchers 1 | . . . . . . . . . . . . . . . . . . . . . . . . . . . . . . . . . . . 1 . . . . . . Extract 1 | . . . . . . . . . . . . . . . . . . . . . . . . . . . . 1 . . . . . . . . . . . . . Garrison Access . | . . . . . . . . . . . . . . . . . . . . . . . . . . . . . . . . . . . . . . . . . . Data Cores Recovered 3 | . . . . . . . . . . . . . . 1 . . 1 . . . . . . . . . . . . . . . . . 1 . . . . . . Used 2 | . . . . . . . . . . . . . . . . . 1 . . . . . . . . . . . . . . . . . 1 . . . . . . Hacking Detections 45 | . 2 . . . 4 . 1 . 6 . . . . 3 . . 4 . . 1 . . 4 . . . . 2 . . . . 4 6 5 . 1 1 1 . . Full Trace Events 4 | . . . . . . . . . 3 . . . . . . . . . . . . . . . . . . 1 . . . . . . . . . . . . . Feedback Events . | . . . . . . . . . . . . . . . . . . . . . . . . . . . . . . . . . . . . . . . . . . Feedback Blocked . | . . . . . . . . . . . . . . . . . . . . . . . . . . . . . . . . . . . . . . . . . . Robot Schematics Acquired 6 | . . . . . . . . . . . . 6 . . . . . . . . . . . . . . . . . . . . . . . . . . . . . Robots Built 1 | . . . . . . . . . . . . . . . . . . . . . . . . . . . . . . . . . 1 . . . . . . . . Matter 318 | . . . . . . . . . . . . . . . . . . . . . . . . . . . . . . . . . 318 . . . . . . . . Time 56 | . . . . . . . . . . . . . . . . . . . . . . . . . . . . . . . . . 56 . . . . . . . . Total Robot Build Rating 6 | . . . . . . . . . . . . . . . . . . . . . . . . . . . . . . . . . 6 . . . . . . . . Part Schematics Acquired 17 | . . . . . 4 . . . . . . 7 . 1 . . . . . . . . . . . 4 . 1 . . . . . . . . . . . . . Parts Built 6 | . . . . . . . . . 1 . . . . 3 . . . . . . . . . . . . . . . . . . 2 . . . . . . . . Matter 1009 | . . . . . . . . . 285 . . . . 468 . . . . . . . . . . . . . . . . . . 256 . . . . . . . . Time 321 | . . . . . . . . . 76 . . . . 181 . . . . . . . . . . . . . . . . . . 64 . . . . . . . . Total Part Build Rating 43 | . . . . . . . . . 5 . . . . 22 . . . . . . . . . . . . . . . . . . 16 . . . . . . . . Parts Repaired 1 | . . . . . . . . . . . . . . . . . . . . . . . 1 . . . . . . . . . . . . . . . . . . Time 108 | . . . . . . . . . . . . . . . . . . . . . . . 108 . . . . . . . . . . . . . . . . . . Parts Recycled . | . . . . . . . . . . . . . . . . . . . . . . . . . . . . . . . . . . . . . . . . . . Recycled Matter . | . . . . . . . . . . . . . . . . . . . . . . . . . . . . . . . . . . . . . . . . . . Retrieved Matter . | . . . . . . . . . . . . . . . . . . . . . . . . . . . . . . . . . . . . . . . . . . Retrieved Components 2 | . 2 . . . . . . . . . . . . . . . . . . . . . . . . . . . . . . . . . . . . . . . . Parts Scanalyzed 5 | . . . . . 4 . . . . . . . . 1 . . . . . . . . . . . . . . . . . . . . . . . . . . . Part Schematics Acquired 5 | . . . . . 4 . . . . . . . . 1 . . . . . . . . . . . . . . . . . . . . . . . . . . . Parts Damaged 2 | . . . . . 1 . . . . . . . . 1 . . . . . . . . . . . . . . . . . . . . . . . . . . . Bothacking | -11 -10 -10 -10 -9 -8 -8 -7 -7 -7 -7 -7 -7 -6 -6 -6 -6 -6 -6 -6 -6 -5 -5 -5 -5 -5 -5 -4 -4 -4 -4 -4 -3 -3 -3 -3 -3 -2 -2 -1 -1 -1 ------------ Run | Scr Mat Min Exi Min Mat Gar Fac Gar Fac Low Low Dat Pro Fac Gar Fac Ext Cet Arc Hub Fac Gar Fac Upp Upp Zhi Pro Fac Upp Upp War Pro Res Qua Sec Gar Res Tes Acc Com Ac0 Used RIF Installer 5 | . . . . . . 1 . 1 . . . . . . 1 . . . . . . 1 . . . . . . . . . . . . . 1 . . . . . Coupler Efficiency 1 | . . . . . . . . . . . . . . . . . . . . . . . . . . . . . . . . . . . . 1 . . . . . Command Fork 1 | . . . . . . . . 1 . . . . . . . . . . . . . . . . . . . . . . . . . . . . . . . . . Threat Obfuscator 1 | . . . . . . . . . . . . . . . . . . . . . . 1 . . . . . . . . . . . . . . . . . . . Watcher Feeds 1 | . . . . . . . . . . . . . . . 1 . . . . . . . . . . . . . . . . . . . . . . . . . . Robots Hacked 7 | . . . . . . . . . . . . . . . . . . . . . . . . . . . . . . . 4 3 . . . . . . . . . Non-combat . | . . . . . . . . . . . . . . . . . . . . . . . . . . . . . . . . . . . . . . . . . . Combat 7 | . . . . . . . . . . . . . . . . . . . . . . . . . . . . . . . 4 3 . . . . . . . . . Robot Hacks Applied 7 | . . . . . . . . . . . . . . . . . . . . . . . . . . . . . . . 4 3 . . . . . . . . . reboot_system 1 | . . . . . . . . . . . . . . . . . . . . . . . . . . . . . . . 1 . . . . . . . . . . overwrite_iff 6 | . . . . . . . . . . . . . . . . . . . . . . . . . . . . . . . 3 3 . . . . . . . . . Relay Couplers Released 12 | . . . . . . . . . . . . . . 4 . . . . . . . 3 . . . . . . . . . . . . . 5 . . . . . Machine Destruction 8 | . . . . . . . . . . . . . . . . . . . . . . 3 . . . . . . . . . . . . . 5 . . . . . Programmers 4 | . . . . . . . . . . . . . . 4 . . . . . . . . . . . . . . . . . . . . . . . . . . . Attached 3 | . . . . . . . . . . . . . . . . . . . . . . . . . . . . . . . 2 . . . . . . . 1 . . Robots Rewired 5 | . . . . . . . . . . . . . 2 . . . 3 . . . . . . . . . . . . . . . . . . . . . . . . Allies Hacked . | . . . . . . . . . . . . . . . . . . . . . . . . . . . . . . . . . . . . . . . . . . Hacks Repelled . | . . . . . . . . . . . . . . . . . . . . . . . . . . . . . . . . . . . . . . . . . . Allies | -11 -10 -10 -10 -9 -8 -8 -7 -7 -7 -7 -7 -7 -6 -6 -6 -6 -6 -6 -6 -6 -5 -5 -5 -5 -5 -5 -4 -4 -4 -4 -4 -3 -3 -3 -3 -3 -2 -2 -1 -1 -1 -------- Run | Scr Mat Min Exi Min Mat Gar Fac Gar Fac Low Low Dat Pro Fac Gar Fac Ext Cet Arc Hub Fac Gar Fac Upp Upp Zhi Pro Fac Upp Upp War Pro Res Qua Sec Gar Res Tes Acc Com Ac0 Total Allies 22 | . . . . 1 . . . . . . . . 3 . . . 10 . . . . . . . . . . . . . 3 4 1 . . . . . . . . Largest Group 7 | . . . . 1 . . . . . . . . 2 . . . 7 1 . . . . . . . . . . . . 1 2 1 1 . . . . . . . Highest-Rated Group 156 | . . . . 31 . . . . . . . . 94 . . . 156 156 . . . . . . . . . . . . 58 60 60 60 . . . . . . . Highest-Rated Ally 156 | . . . . 31 . . . . . . . . 94 . . . 156 156 . . . . . . . . . . . . 58 30 60 60 . . . . . . . Total Orders 13 | . . . . . . . . . . . . . 2 5 . . . . . . . . . . . . . . . . . . 2 2 2 . . . . . . STAY 3 | . . . . . . . . . . . . . 1 . . . . . . . . . . . . . . . . . . . 1 1 . . . . . . . ROAM 2 | . . . . . . . . . . . . . 1 . . . . . . . . . . . . . . . . . . . . 1 . . . . . . . FOLLOW 1 | . . . . . . . . . . . . . . . . . . . . . . . . . . . . . . . . . 1 . . . . . . . . EXPLORE 6 | . . . . . . . . . . . . . . 5 . . . . . . . . . . . . . . . . . . . . 1 . . . . . . RETURN 1 | . . . . . . . . . . . . . . . . . . . . . . . . . . . . . . . . . . . 1 . . . . . . Ally Attacks 102 | . . . 25 2 . . . . . . . . 19 . . . 28 9 . . . . . . . . . . . . 9 10 . . . . . . . . . Total Damage 3151 | . . . 1243 41 . . . . . . . . 632 . . . 632 231 . . . . . . . . . . . . 171 201 . . . . . . . . . Kills 15 | . . . 3 1 . . . . . . . . 4 . . . 3 2 . . . . . . . . . . . . 1 1 . . . . . . . . . Allies Corrupted . | . . . . . . . . . . . . . . . . . . . . . . . . . . . . . . . . . . . . . . . . . . Allies Melted . | . . . . . . . . . . . . . . . . . . . . . . . . . . . . . . . . . . . . . . . . . . Turrets Deployed 3 | . . . 3 . . . . . . . . . . . . . . . . . . . . . . . . . . . . . . . . . . . . . . Intel | -11 -10 -10 -10 -9 -8 -8 -7 -7 -7 -7 -7 -7 -6 -6 -6 -6 -6 -6 -6 -6 -5 -5 -5 -5 -5 -5 -4 -4 -4 -4 -4 -3 -3 -3 -3 -3 -2 -2 -1 -1 -1 ------- Run | Scr Mat Min Exi Min Mat Gar Fac Gar Fac Low Low Dat Pro Fac Gar Fac Ext Cet Arc Hub Fac Gar Fac Upp Upp Zhi Pro Fac Upp Upp War Pro Res Qua Sec Gar Res Tes Acc Com Ac0 Robot Analysis Total 5 | . 1 . . . . . . . . . . . . . . . . . . . . . . . . 4 . . . . . . . . . . . . . . . Derelict Logs Recovered 11 | . . . . 1 . . . . . 2 1 . 3 . . . . . . . . . . . 1 . 1 . 1 1 . . . . . . . . . . . Drone Launches 10 | . . . . . . . . . . . . . . 7 . . . . . . . . . . . . . . . . . . . . 3 . . . . . . Drone Recoveries 7 | . . . . . . . . . . . . . . 5 . . . . . . . . . . . . . . . . . . . . 2 . . . . . . Exploration | -11 -10 -10 -10 -9 -8 -8 -7 -7 -7 -7 -7 -7 -6 -6 -6 -6 -6 -6 -6 -6 -5 -5 -5 -5 -5 -5 -4 -4 -4 -4 -4 -3 -3 -3 -3 -3 -2 -2 -1 -1 -1 ------------- Run | Scr Mat Min Exi Min Mat Gar Fac Gar Fac Low Low Dat Pro Fac Gar Fac Ext Cet Arc Hub Fac Gar Fac Upp Upp Zhi Pro Fac Upp Upp War Pro Res Qua Sec Gar Res Tes Acc Com Ac0 Turns Passed 44946 | 281 537 270 1307 317 980 221 51 236 1434 1600 1141 154 3113 1272 1146 188 924 391 335 320 30 454 1054 573 794 318 652 271 1051 630 4747 237 1837 2189 1438 910 385 758 1046 8501 853 Spaces Moved 19031 | 132 331 220 979 257 475 111 26 96 627 788 569 81 1384 475 238 83 407 143 153 145 16 186 490 301 381 169 272 146 501 333 389 383 987 975 616 427 145 365 461 3453 315 Core 246 | 4 . . . . . . . . . . . . 7 . . . . . . . . . . . . . . . 3 . . 193 32 . . . . . . . 7 Treads 15907 | 128 94 . . . 452 111 26 96 627 788 569 81 1377 475 49 . 277 105 153 145 16 186 271 301 381 169 272 146 498 333 141 . 890 975 616 427 145 365 461 3453 308 Legs 798 | . . . 313 257 23 . . . . . . . . . 189 16 . . . . . . . . . . . . . . . . . . . . . . . . . Wheels 1799 | . 237 220 666 . . . . . . . . . . . . 67 130 38 . . . . 219 . . . . . . . 157 . 65 . . . . . . . . Hover . | . . . . . . . . . . . . . . . . . . . . . . . . . . . . . . . . . . . . . . . . . . Flight 281 | . . . . . . . . . . . . . . . . . . . . . . . . . . . . . . . 91 190 . . . . . . . . . Fastest Speed 37 | 50 90 100 90 120 120 161 181 181 170 190 190 190 50 180 200 120 120 160 160 160 160 160 140 160 180 180 180 180 180 180 37 37 50 148 152 158 158 158 150 146 50 Average Speed 163 | 156 116 100 121 120 163 162 181 186 189 190 190 190 199 185 257 160 147 173 160 160 160 168 158 160 180 180 180 180 200 180 155 46 151 151 156 160 158 158 155 165 143 Slowest Speed 2550 | 160 160 100 160 120 183 181 181 190 190 190 190 190 240 205 300 270 220 210 160 160 160 180 180 160 180 180 180 180 2550 180 210 120 160 156 158 162 162 158 158 210 146 Overloaded Moves . | . . . . . . . . . . . . . . . . . . . . . . . . . . . . . . . . . . . . . . . . . . Propulsion Burnouts . | . . . . . . . . . . . . . . . . . . . . . . . . . . . . . . . . . . . . . . . . . . Robots Hopped 3 | . . . 2 . . . . . . . . . . . . . . . . . . . . . . . . . . . . 1 . . . . . . . . . Cave-ins Triggered 2 | . . . . . . . . . . . . . . . . . . . . . . . . . . . . . . . . . . . 1 . . . 1 . . Teleports 8 | . . . . . . . . . . . . . . . . . . . . . . . . . . . . . . . 1 . . 1 3 . . . 1 1 1 Exploration Rate (%) 45 | 4 45 54 89 60 46 36 . 33 23 94 71 69 98 23 38 4 60 53 75 21 1 32 14 50 43 60 42 4 70 51 20 54 30 82 55 77 6 34 16 86 25 Regions Visited 41 Branch Regions 24 Pre-discovered Areas 9 | . 1 . 1 1 . . . . . 1 . 1 1 . . . . . . . . . . . . 3 . . . . . . . . . . . . . . . Known Exits Taken 16 | . . . . . 1 . 1 . 1 1 1 1 . 1 . 1 . . . 1 1 . 1 . . . . 1 . . . 1 1 . 1 . 1 . . . . Unknown Exits Taken 20 | 1 1 1 1 1 . . . . . . . . 1 . . . 1 1 1 . . . . 1 1 1 1 . 1 1 1 . . 1 . . . 1 1 1 . Scrap Searched 23 | . . 1 . 2 . . . . . 6 3 . 2 . . . . . . . . . . . 3 . 1 . 3 1 . 1 . . . . . . . . . Spaces Dug 176 | . 23 . . . 25 . . 8 6 . . . 15 1 . . 1 . . . . . . . . . . . 14 . 17 . 2 5 10 1 2 4 13 29 . Terrain Destroyed 857 | . 55 12 21 . 37 . . 27 31 3 1 . 134 8 1 . 1 . 6 15 . 6 33 10 16 . 14 . 50 2 150 . 23 20 61 14 2 4 13 70 17 Melee 54 | . . . . . 1 . . . 1 . . . . 1 . . 1 . . . . . . . . . . . . . 10 . . 5 7 1 2 3 13 9 . Projectile 278 | . 3 . 16 . 5 . . 1 3 1 1 . 10 7 1 . . . 6 15 . 6 33 10 16 . 14 . 7 2 38 . 10 15 21 13 . 1 . 6 17 AOE 525 | . 52 12 5 . 31 . . 26 27 2 . . 124 . . . . . . . . . . . . . . . 43 . 102 . 13 . 33 . . . . 55 . Terrain Rammed . | . . . . . . . . . . . . . . . . . . . . . . . . . . . . . . . . . . . . . . . . . . Walls Destroyed . | . . . . . . . . . . . . . . . . . . . . . . . . . . . . . . . . . . . . . . . . . . Machines Disabled . | . . . . . . . . . . . . . . . . . . . . . . . . . . . . . . . . . . . . . . . . . . Actions | -11 -10 -10 -10 -9 -8 -8 -7 -7 -7 -7 -7 -7 -6 -6 -6 -6 -6 -6 -6 -6 -5 -5 -5 -5 -5 -5 -4 -4 -4 -4 -4 -3 -3 -3 -3 -3 -2 -2 -1 -1 -1 --------- Run | Scr Mat Min Exi Min Mat Gar Fac Gar Fac Low Low Dat Pro Fac Gar Fac Ext Cet Arc Hub Fac Gar Fac Upp Upp Zhi Pro Fac Upp Upp War Pro Res Qua Sec Gar Res Tes Acc Com Ac0 Total 30572 | 178 439 265 1099 265 615 136 30 131 782 841 617 81 1634 770 738 128 689 222 206 197 20 264 698 361 450 187 405 152 533 350 4442 439 1279 1617 869 563 282 485 705 5843 565 Wait 8469 | . 47 42 44 . 29 8 . 9 74 15 38 . 135 153 454 15 206 7 15 20 . 24 100 18 37 . 108 . 8 7 3905 25 133 460 65 54 113 60 169 1857 15 Move 18984 | 131 330 219 974 256 475 110 25 95 626 787 568 80 1383 474 237 82 406 142 152 144 16 185 489 300 380 168 271 145 500 332 388 380 986 974 614 426 144 364 460 3452 314 Hop 3 | . . . 2 . . . . . . . . . . . . . . . . . . . . . . . . . . . . 1 . . . . . . . . . Pick Up 281 | 5 6 . 22 3 16 . 3 . 8 2 2 . 18 18 2 1 2 10 8 4 . 5 15 10 2 5 2 2 2 . 4 5 9 12 6 5 3 4 3 45 12 Fast Attach 280 | 7 6 . 15 1 7 1 . 1 3 . 1 . 8 16 6 6 4 8 . . . 4 5 . 1 3 1 1 5 . 10 6 44 31 9 3 3 1 1 56 6 Attach 169 | 2 3 . 5 . 4 2 2 2 1 4 1 . 9 9 3 2 1 1 5 2 3 2 8 1 2 2 . . 2 . 21 3 5 2 7 3 3 1 6 25 15 Detach 98 | 2 2 . 10 . 3 1 . 1 . 2 . . . 6 2 . 2 1 . . . 1 3 1 1 1 . . . . 8 3 11 6 6 . . 1 2 17 5 Swap 298 | . 6 1 1 2 15 1 . 4 13 11 2 1 14 14 5 5 8 6 . 3 . 2 14 1 . . . . 2 1 17 . 12 18 20 4 2 8 8 61 16 Drop 413 | 1 11 . 23 3 14 1 . 1 12 . . . 3 13 4 11 8 10 8 2 1 . 15 8 2 8 1 1 3 1 20 7 40 44 9 6 5 4 7 89 17 Fire 1188 | 21 27 2 3 . 43 12 . 16 36 19 4 . 52 60 19 6 25 36 17 22 . 35 46 22 25 . 16 1 11 9 42 4 38 52 50 43 1 21 18 171 163 Melee 266 | . . . . . 1 . . . 1 . . . 3 1 . . 1 . . . . . . . . . . . . . 20 1 . 14 82 18 8 16 31 67 2 Ram . | . . . . . . . . . . . . . . . . . . . . . . . . . . . . . . . . . . . . . . . . . . Kick . | . . . . . . . . . . . . . . . . . . . . . . . . . . . . . . . . . . . . . . . . . . Crush 66 | 9 1 1 . . 8 . . . 8 1 1 . . 6 1 . 1 1 1 . . 2 3 . . . 4 2 . . 2 . 1 4 . 1 . 5 . 3 . Escape Stasis 12 | . . . . . . . . 2 . . . . . . 5 . . . . . . 4 . . . . . . . . . . . . 1 . . . . . . Rewire 36 | . . . . . . . . . . . . . 9 . . . 25 . . . . . . . . . 2 . . . . . . . . . . . . . . Trap 9 | . . . . . . . . . . . . . . . . . . . . . . . . . . . . . . . 5 4 . . . . . . . . . Miscellaneous . | . . . . . . . . . . . . . . . . . . . . . . . . . . . . . . . . . . . . . . . . . . Route ------- -11/Scrapyard -10/Materials (discovered 2 exits: [*Mat] / [*Min]) -10/Mines (discovered 3 exits: [*Mat x2] / *Exi) -10/Exiles -9/Mines -8/Materials (discovered 3 exits: *Fac / Sto / Gar) -8/Garrison -7/Factory -7/Garrison -7/Factory (discovered 2 exits: *Low x2) -7/Lower Caves -7/Lower Caves (discovered 2 exits: *Fac / *Dat) -7/Data Miner -6/Proximity Caves -6/Factory (discovered 6 exits: Fac / *Low x2 / Ext x2 / Gar) -6/Garrison -6/Factory -6/Extension (discovered 2 exits: *Fac / [*Cet]) -6/Cetus -6/Archives (discovered 2 exits: *Fac / *Hub) -6/Hub_04(d) -5/Factory -5/Garrison -5/Factory (discovered 2 exits: *Upp x2) -5/Upper Caves -5/Upper Caves -5/Zhirov -4/Proximity Caves -4/Factory (discovered 3 exits: Res / *Upp x2) -4/Upper Caves -4/Upper Caves (discovered 2 exits: *Res / [*War]) -4/Warlord -3/Proximity Caves -3/Research (discovered 5 exits: *Res x2 / *Arm / *Qua x2) -3/Quarantine (discovered 2 exits: *Res / *Sec) -3/Section 7 -3/Garrison (discovered 3 exits: *Res x3) -2/Research (discovered 2 exits: *Tes x2) -2/Testing -1/Access -1/Command (discovered 2 exits: [*Sur] / [*Ac0]) -1/Access_0 Near Former Tau Ceti IV History --------- Turn | Location | Event 8 | -11/Scrapyard | Discovered new exit (range 16) 282 | -11/Scrapyard | Entered Materials 329 | -10/Materials | Build established: Mutant 634 | -10/Materials | Discovered new exit (range 11) 713 | -10/Materials | Discovered new exit (range 3) 819 | -10/Materials | Entered Mines 832 | -10/Mines | Assembled infested the area 842 | -10/Mines | Met a Derelict bent on vengeance 928 | -10/Mines | Discovered new exit (range 13) 1006 | -10/Mines | Discovered new exit (range 15) 1085 | -10/Mines | Discovered new exit (range 5) 1089 | -10/Mines | Entered Exiles 1113 | -10/Exiles | Met 8R-AWN 1130 | -10/Exiles | Met EX-HEX 1203 | -10/Exiles | Met EX-DEC 1225 | -10/Exiles | Learned location of Zion (-6) 1479 | -10/Exiles | Met EX-BIN 1495 | -10/Exiles | Aligned with FarCom system 1496 | -10/Exiles | Given EX-Vault access code 1528 | -10/Exiles | Opened EX-Vault 1538 | -10/Exiles | Found Cloak of Protection 1545 | -10/Exiles | Found AWS/Gauss 1549 | -10/Exiles | Found Deploy-a-Sentry 1551 | -10/Exiles | Found Deploy-a-Sentry 1554 | -10/Exiles | Found Deploy-a-Sentry 1583 | -10/Exiles | Warned to stay clear of 0b10 Research branches 1693 | -10/Exiles | DAS Turret deployed 1699 | -10/Exiles | DAS Turret deployed 1713 | -10/Exiles | DAS Turret deployed 1761 | -10/Exiles | Attacked by the Exiles 1763 | -10/Exiles | Destroyed EX-HEX 1771 | -10/Exiles | Destroyed EX-BIN 1774 | -10/Exiles | Found Prototype Device 1777 | -10/Exiles | Allies destroyed EX-DEC 1832 | -10/Exiles | Destroyed 8R-AWN 2038 | -10/Exiles | Identified System Purifier 2090 | -10/Exiles | Found Prototype Ballistic Gun 2090 | -10/Exiles | Identified 8R-AWN's Boregun 2094 | -10/Exiles | Found Prototype Processor 2383 | -10/Exiles | Discovered new exit (range 14) 2396 | -10/Exiles | Entered Mines 2399 | -9/Mines | Received a Mining Laser from a helpful Derelict 2645 | -9/Mines | Discovered new exit (range 8) 2656 | -9/Mines | Met a Derelict shopkeep closing up shop 2713 | -9/Mines | Entered Materials 2713 | -8/Materials | Evolved 4 slots: Propulsion x2, Utility x2 3232 | -8/Materials | Identified Exp. Targeting Computer 3299 | -8/Materials | Build established: Hauler-Mutant 3363 | -8/Materials | Discovered new exit (range 16) 3367 | -8/Materials | Identified exit to Storage 3693 | -8/Materials | Identified exit to Garrison 3693 | -8/Materials | Entered Garrison 3776 | -8/Garrison | Triggered checkpoint 3874 | -8/Garrison | Discovered new exit (range 14) 3906 | -8/Garrison | Installed Relay Interface Framework 3914 | -8/Garrison | Entered Factory 3914 | -7/Factory | Evolved 2 slots: Weapon x2 3924 | -7/Factory | Identified exit to Garrison 3965 | -7/Factory | Entered Garrison 4038 | -7/Garrison | Triggered checkpoint 4049 | -7/Garrison | Triggered checkpoint 4064 | -7/Garrison | Destroyed 8 combat bots 4165 | -7/Garrison | Discovered new exit (range 10) 4194 | -7/Garrison | Expanded RIF knowledge: Command Fork 4201 | -7/Garrison | Entered Factory 4213 | -7/Factory | Build established: Hauler-Tank 4905 | -7/Factory | Build established: Hacker-Gunner 5024 | -7/Factory | Fabricated Exp. Targeting Computer (x1) 5099 | -7/Factory | Local fabrication network quarantined 5149 | -7/Factory | Identified exit to Lower Caves 5205 | -7/Factory | Garrison activated, responded to threat 5635 | -7/Factory | Entered Lower Caves 6141 | -7/Lower Caves | Build established: Hauler-Skirmisher 6602 | -7/Lower Caves | Learned location of 1 exit from Factory 6833 | -7/Lower Caves | Spotted B-75 Beast 6865 | -7/Lower Caves | Destroyed B-75 Beast 7066 | -7/Lower Caves | Discovered new exit (range 16) 7233 | -7/Lower Caves | Identified exit to Lower Caves 7235 | -7/Lower Caves | Entered another Lower Caves area 7260 | -7/Lower Caves | Discovered new exit (range 12) 7636 | -7/Lower Caves | Learned Factory emergency access door positions 8157 | -7/Lower Caves | Discovered new exit (range 6) 8168 | -7/Lower Caves | Identified exit to Data Miner 8376 | -7/Lower Caves | Entered Data Miner 8376 | -7/Data Miner | Discovered new exit (range 6) 8413 | -7/Data Miner | Met Data Miner 8449 | -7/Data Miner | Learned location of Section 7 (-3) 8449 | -7/Data Miner | Acquired the access code to Warlord's prototype stash 8483 | -7/Data Miner | Received God Mode back door access code from Data Miner 8527 | -7/Data Miner | Identified exit to Proximity Caves 8530 | -7/Data Miner | Entered Proximity Caves 8761 | -6/Proximity Caves | Escorted by Enhanced Grunt 9447 | -6/Proximity Caves | Found Alien Artifact 9447 | -6/Proximity Caves | Identified Dimensional Node Initializer 9447 | -6/Proximity Caves | Initialized slip node 9815 | -6/Proximity Caves | Attracted the attention of an 0b10 outpost 9864 | -6/Proximity Caves | Destroyed 11 combat bots 10213 | -6/Proximity Caves | Learned 12 Factory zone layouts 10269 | -6/Proximity Caves | Learned Factory emergency access door positions 10317 | -6/Proximity Caves | Attracted the attention of an 0b10 checkpoint 10354 | -6/Proximity Caves | Released all parts (6) 10379 | -6/Proximity Caves | Lost 9 parts (4n5w) 10538 | -6/Proximity Caves | Spotted B-75 Beast 10670 | -6/Proximity Caves | Destroyed B-75 Beast 10866 | -6/Proximity Caves | Build established: Hauler-Tank 11479 | -6/Proximity Caves | Discovered new exit (range 9) 11643 | -6/Proximity Caves | Entered Factory 11643 | -6/Factory | Evolved 2 slots: Utility x2 11644 | -6/Factory | Identified exit to Extension 11645 | -6/Factory | Identified exit to Lower Caves 11645 | -6/Factory | Identified exit to Factory 11869 | -6/Factory | Discovered exit to Lower Caves (range 69) 12269 | -6/Factory | Build established: Scavenger-Gunner 12549 | -6/Factory | Fabricated Lrn. Proton Cannon? 12671 | -6/Factory | Fabricated Adv. Weapon Cycler (x2) 12834 | -6/Factory | Identified exit to Garrison 12915 | -6/Factory | Entered Garrison 13064 | -6/Garrison | Triggered checkpoint 13133 | -6/Garrison | Destroyed 12 combat bots 13140 | -6/Garrison | Lost 5 parts (1p2n2u) 13602 | -6/Garrison | Discovered new exit (range 15) 13667 | -6/Garrison | Expanded RIF knowledge: Patrol Navigation 13912 | -6/Garrison | Triggered checkpoint 14061 | -6/Garrison | Entered Factory 14213 | -6/Factory | Discovered exit to Extension (range 3) 14249 | -6/Factory | Entered Extension 14563 | -6/Extension | Rescued a captive Derelict 14638 | -6/Extension | Rescued a captive Derelict 14742 | -6/Extension | Rescued a captive Derelict 14742 | -6/Extension | Rescued a captive Derelict 14785 | -6/Extension | Spotted B-75 Beast 14799 | -6/Extension | Disrupted transfer network 14807 | -6/Extension | Spotted B-75 Beast 14822 | -6/Extension | Destroyed B-75 Beast 14835 | -6/Extension | Destroyed B-75 Beast 14846 | -6/Extension | Rescued a captive Derelict 14846 | -6/Extension | Rescued a captive Derelict 14989 | -6/Extension | Rescued A7 15133 | -6/Extension | Discovered new exit (range 16) 15135 | -6/Extension | Discovered exit to Factory (range 15) 15173 | -6/Extension | Entered Cetus 15173 | -6/Cetus | Accompanied by 1 ally (A7) 15178 | -6/Cetus | Acquired a Cetus Manufacturing Module code from A7 15195 | -6/Cetus | Spotted Cetus Guard 15195 | -6/Cetus | Spotted Cetus Guard 15201 | -6/Cetus | Destroyed Cetus Guard 15201 | -6/Cetus | Spotted Cetus Guard 15205 | -6/Cetus | Allies destroyed Cetus Guard 15205 | -6/Cetus | Spotted Cetus Guard 15213 | -6/Cetus | Destroyed Cetus Guard 15222 | -6/Cetus | Allies destroyed Cetus Guard 15241 | -6/Cetus | Destroyed A7 15247 | -6/Cetus | Extracted ID and sensor layout for unrecognized location from A7's data core 15251 | -6/Cetus | Found Prototype Protection 15324 | -6/Cetus | Core integrity fell below 50% 15457 | -6/Cetus | Discovered new exit (range 16) 15488 | -6/Cetus | Spotted Cetus Guard 15488 | -6/Cetus | Spotted Cetus Guard 15491 | -6/Cetus | Spotted Cetus Guard 15493 | -6/Cetus | Destroyed Cetus Guard 15503 | -6/Cetus | Destroyed Cetus Guard 15509 | -6/Cetus | Destroyed Cetus Guard 15509 | -6/Cetus | Spotted Cetus Guard 15519 | -6/Cetus | Destroyed Cetus Guard 15564 | -6/Cetus | Entered Archives 15733 | -6/Archives | Discovered exit to Factory (range 15) 15814 | -6/Archives | Discovered new exit (range 15) 15899 | -6/Archives | Entered Hub_04(d) 15943 | -6/Hub_04(d) | Discovered exit to Factory (range 8) 15986 | -6/Hub_04(d) | Destroyed 7 combat bots 16155 | -6/Hub_04(d) | Network Hub disabled 16155 | -6/Hub_04(d) | Network Hub disabled 16176 | -6/Hub_04(d) | Incoming investigation squad redirected 16219 | -6/Hub_04(d) | Entered Factory 16219 | -5/Factory | Evolved 2 slots: Utility x2 16222 | -5/Factory | Identified Med. Regenerative Plating 16249 | -5/Factory | Identified exit to Garrison 16249 | -5/Factory | Entered Garrison 16322 | -5/Garrison | Triggered checkpoint 16342 | -5/Garrison | Garrison Relay disabled 16464 | -5/Garrison | Triggered checkpoint 16500 | -5/Garrison | Triggered checkpoint 16566 | -5/Garrison | Destroyed 12 combat bots 16567 | -5/Garrison | Lost 4 parts (1p1n1u1w) 16647 | -5/Garrison | Build established: Bothacker-Gunner 16657 | -5/Garrison | Discovered new exit (range 12) 16693 | -5/Garrison | Expanded RIF knowledge: Threat Obfuscation 16703 | -5/Garrison | Entered Factory 17003 | -5/Factory | First assault squad dispatched 17254 | -5/Factory | Repaired Centrium Heavy Treads? 17409 | -5/Factory | Identified exit to Upper Caves 17757 | -5/Factory | Entered Upper Caves 18185 | -5/Upper Caves | Discovered new exit (range 5) 18330 | -5/Upper Caves | Entered another Upper Caves area 18685 | -5/Upper Caves | Learned location of 2 exits from Factory 18730 | -5/Upper Caves | Attracted the attention of an 0b10 checkpoint 18920 | -5/Upper Caves | Discovered new exit (range 7) 19124 | -5/Upper Caves | Entered Zhirov 19124 | -5/Zhirov | Discovered new exit (range 3) 19159 | -5/Zhirov | Met Zhirov 19191 | -5/Zhirov | Learned location of Quarantine (-3) 19191 | -5/Zhirov | Learned location of Testing (-2) 19191 | -5/Zhirov | Learned location of Command (-1) 19208 | -5/Zhirov | Zhirov requested help retrieving the SGEMP Prototype 19237 | -5/Zhirov | Found Alien Artifact 19237 | -5/Zhirov | Identified Integrated Dissipator 19237 | -5/Zhirov | Installed Integrated Dissipator, increased core heat dissipation (+20) 19317 | -5/Zhirov | Found Alien Artifact 19442 | -5/Zhirov | Entered Proximity Caves 19746 | -4/Proximity Caves | Spotted B-86 Titan 19874 | -4/Proximity Caves | Destroyed B-86 Titan 19921 | -4/Proximity Caves | Learned 4 Research zone layouts 20054 | -4/Proximity Caves | Discovered new exit (range 10) 20094 | -4/Proximity Caves | Entered Factory 20094 | -4/Factory | Evolved 2 slots: Power x1, Utility x1 20095 | -4/Factory | Identified exit to Upper Caves 20095 | -4/Factory | Identified exit to Research 20237 | -4/Factory | Incoming investigation squad redirected 20290 | -4/Factory | Discovered exit to Upper Caves (range 4) 20365 | -4/Factory | Entered Upper Caves 20420 | -4/Upper Caves | Attacked by a delusional Derelict stockpiling parts 21373 | -4/Upper Caves | Discovered new exit (range 15) 21405 | -4/Upper Caves | Learned location of 1 exit from Research 21416 | -4/Upper Caves | Entered another Upper Caves area 21461 | -4/Upper Caves | Discovered exit to Research (range 15) 21519 | -4/Upper Caves | Learned Research terminal intel 21683 | -4/Upper Caves | Attracted the attention of an 0b10 checkpoint 21827 | -4/Upper Caves | Discovered new exit (range 10) 22046 | -4/Upper Caves | Entered Warlord 22167 | -4/Warlord | Discovered new exit (range 15) 22400 | -4/Warlord | Build established: Bothacker-Mutant 22752 | -4/Warlord | Build established: Bothacker-Gunner 23346 | -4/Warlord | Warlord's base attacked by MAIN.C 23696 | -4/Warlord | Warlord forces counterattacked 24950 | -4/Warlord | Spotted Executioner 24986 | -4/Warlord | Destroyed Executioner 24996 | -4/Warlord | Lost 4 parts (1p1u2w) 25016 | -4/Warlord | Found Exp. Targeting Computer 25232 | -4/Warlord | Spotted Executioner 25236 | -4/Warlord | Spotted Striker 25237 | -4/Warlord | Spotted Striker 25244 | -4/Warlord | Identified Transdimensional Reconstructor 25244 | -4/Warlord | Warped through subspace 25297 | -4/Warlord | Lost 12 parts (1p2n3u6w) 25311 | -4/Warlord | Opened side exit 25530 | -4/Warlord | Build established: Bothacker-Mutant 26532 | -4/Warlord | RIF detected upon attempting to enter Warlord's base 26532 | -4/Warlord | Attacked by Warlord forces 26708 | -4/Warlord | Spotted Striker 26767 | -4/Warlord | Spotted Executioner 26793 | -4/Warlord | Entered Proximity Caves 26881 | -3/Proximity Caves | Core integrity fell below 50% 26896 | -3/Proximity Caves | Build established: Scavenger-Mutant 26953 | -3/Proximity Caves | Lost 7 parts (3n2u2w) 27021 | -3/Proximity Caves | Discovered exit to Research (range 15) 27030 | -3/Proximity Caves | Entered Research 27030 | -3/Research | Evolved 2 slots: Propulsion x2 27031 | -3/Research | Identified exit to Research 27033 | -3/Research | Loaded intel: 20 terminal locations 27047 | -3/Research | Identified exit to Armory 27047 | -3/Research | Identified exit to Quarantine 27047 | -3/Research | Discovered exit to Research (range 18) 27230 | -3/Research | Revision forces began assault on 0b10 27239 | -3/Research | Met up with Revision 17++ 27381 | -3/Research | Spotted B-86 Titan 27426 | -3/Research | Fabricated Adv. Weapon Cycler? 27532 | -3/Research | Fabricated I-47 Archangel? 27730 | -3/Research | Research terminal network offline 27819 | -3/Research | Local fabrication network quarantined 27943 | -3/Research | Spotted Striker 27954 | -3/Research | Spotted Striker 28259 | -3/Research | Spotted Striker 28267 | -3/Research | Spotted Striker 28272 | -3/Research | Build established: Scavenger-Gunner 28323 | -3/Research | Spotted Striker 28507 | -3/Research | Spotted Executioner 28507 | -3/Research | Spotted Striker 28546 | -3/Research | Found Prototype Processor 28546 | -3/Research | Identified Exp. Core Analyzer 28865 | -3/Research | Spotted Executioner 28867 | -3/Research | Entered Quarantine 28867 | -3/Quarantine | Accompanied by 1 ally 28875 | -3/Quarantine | Found Alien Artifact 29267 | -3/Quarantine | Cryocooling Duct disabled 29282 | -3/Quarantine | Ambient heat levels rising (+20) 29282 | -3/Quarantine | Non-combat units ordered to evacuate 29467 | -3/Quarantine | Cryocooling Duct disabled 29482 | -3/Quarantine | Ambient heat levels rising (+20) 29482 | -3/Quarantine | Combat units ordered to evacuate 29582 | -3/Quarantine | Quarantine Guard activated 29914 | -3/Quarantine | Spotted Quarantine Guard 29931 | -3/Quarantine | Destroyed Quarantine Guard 29935 | -3/Quarantine | Spotted Quarantine Guard 29937 | -3/Quarantine | Destroyed Quarantine Guard 30003 | -3/Quarantine | Found Alien Slashing Weapon 30003 | -3/Quarantine | Identified Sigix Broadsword 30078 | -3/Quarantine | Found Dimensional Node Initializer 30078 | -3/Quarantine | Initialized slip node 30089 | -3/Quarantine | Found Alien Artifact 30089 | -3/Quarantine | Identified Hpw. Transdimensional Reconstructor 30089 | -3/Quarantine | Warped through subspace to slip node 30144 | -3/Quarantine | Spotted Quarantine Guard 30152 | -3/Quarantine | Spotted Quarantine Guard 30154 | -3/Quarantine | Destroyed Quarantine Guard 30172 | -3/Quarantine | Destroyed Quarantine Guard 30189 | -3/Quarantine | Spotted Quarantine Guard 30195 | -3/Quarantine | Destroyed Quarantine Guard 30202 | -3/Quarantine | Spotted Quarantine Guard 30209 | -3/Quarantine | Destroyed Quarantine Guard 30209 | -3/Quarantine | Spotted Quarantine Guard 30228 | -3/Quarantine | Destroyed Quarantine Guard 30275 | -3/Quarantine | Spotted Quarantine Guard 30296 | -3/Quarantine | Destroyed Quarantine Guard 30297 | -3/Quarantine | Build established: Scavenger-Mutant 30388 | -3/Quarantine | Found Transdimensional Reconstructor 30392 | -3/Quarantine | Found Transdimensional Reconstructor 30394 | -3/Quarantine | Found Transdimensional Reconstructor 30404 | -3/Quarantine | Found Dimensional Node Initializer 30439 | -3/Quarantine | Discovered exit to Research (range 16) 30439 | -3/Quarantine | Spotted Quarantine Guard 30445 | -3/Quarantine | Destroyed Quarantine Guard 30457 | -3/Quarantine | Found Alien Artifact 30520 | -3/Quarantine | Found Alien Impact Weapon 30699 | -3/Quarantine | Found Alien Artifact 30699 | -3/Quarantine | Identified Matter Drive 30703 | -3/Quarantine | Identified Core Stripper 30747 | -3/Quarantine | Spotted Fortress 30753 | -3/Quarantine | Destroyed Fortress 30873 | -3/Quarantine | Found Prototype Reactor 30873 | -3/Quarantine | Identified Vortex Chain Reactor 30877 | -3/Quarantine | Found Vortex Chain Reactor 30900 | -3/Quarantine | Found Prototype Device 30900 | -3/Quarantine | Identified Thermal Barrier 30904 | -3/Quarantine | Found Prototype Device 30904 | -3/Quarantine | Identified Exp. Force Field 30922 | -3/Quarantine | Found Prototype Device 30922 | -3/Quarantine | Identified EM Dispersion Field 31045 | -3/Quarantine | Discovered new exit (range 5) 31045 | -3/Quarantine | Spotted Quarantine Guard 31056 | -3/Quarantine | Entered Section 7 31073 | -3/Section 7 | Spotted S7 Guard 31091 | -3/Section 7 | Destroyed S7 Guard 31104 | -3/Section 7 | Found Alien Artifact 31104 | -3/Section 7 | Identified Core Regenerator 31104 | -3/Section 7 | Used Core Regenerator, restored core integrity (+210) 31208 | -3/Section 7 | Spotted S7 Guard 31219 | -3/Section 7 | Destroyed S7 Guard 31266 | -3/Section 7 | Destroyed 10 combat bots 31273 | -3/Section 7 | Identified Core Reset Matrix 31273 | -3/Section 7 | Identified Subatomic Replicator 31314 | -3/Section 7 | Found Integrated Dissipator 31314 | -3/Section 7 | Installed Integrated Dissipator, increased core heat dissipation (+20) 31497 | -3/Section 7 | Warped through subspace 31556 | -3/Section 7 | First assault squad dispatched 31702 | -3/Section 7 | Found Alien Artifact 31706 | -3/Section 7 | Identified Integrated Singularity Reactor 31706 | -3/Section 7 | Installed Integrated Singularity Reactor, increased core energy generation (+20) 31714 | -3/Section 7 | Warped through subspace 31983 | -3/Section 7 | Spotted Executioner 31985 | -3/Section 7 | Spotted Executioner 32047 | -3/Section 7 | Found Transdimensional Reconstructor 32050 | -3/Section 7 | Found Hpw. Transdimensional Reconstructor 32067 | -3/Section 7 | Found Matter Drive 32068 | -3/Section 7 | Warped through subspace 32115 | -3/Section 7 | Spotted B-99 Colossus 32216 | -3/Section 7 | Found Alien Artifact 32216 | -3/Section 7 | Identified LRC Storage 32216 | -3/Section 7 | Installed LRC Storage, increased inventory capacity (+2) 32456 | -3/Section 7 | Crushed by falling debris 32477 | -3/Section 7 | Identified exit to Garrison 32494 | -3/Section 7 | Entered Garrison 32567 | -3/Garrison | Garrison Relay disabled 32674 | -3/Garrison | Triggered checkpoint 32711 | -3/Garrison | Triggered checkpoint 32992 | -3/Garrison | Discovered exit to Research (range 10) 33159 | -3/Garrison | Discovered exit to Research (range 14) 33290 | -3/Garrison | Triggered checkpoint 33371 | -3/Garrison | Discovered exit to Research (range 8) 33397 | -3/Garrison | Expanded RIF knowledge: Coupler Efficiency 33404 | -3/Garrison | Entered Research 33404 | -2/Research | Evolved 2 slots: Weapon x2 33445 | -2/Research | Identified exit to Testing 33789 | -2/Research | Entered Testing 34174 | -2/Testing | Spotted PP-GWNUXQD56H 34365 | -2/Testing | Build established: Scavenger-Tank 34394 | -2/Testing | Protovariant out of control (PP-GWNUXQD56H) 34394 | -2/Testing | Unleashed a protovariant (PP-GWNUXQD56H) 34394 | -2/Testing | Discovered new exit (range 15) 34547 | -2/Testing | Entered Access 34547 | -1/Access | Evolved 2 slots: Utility x2 34797 | -1/Access | Assembled infested ambush trap array 34799 | -1/Access | Warped through subspace 34813 | -1/Access | Incoming assault squad redirected 34834 | -1/Access | Garrison activated, responded to threat 35353 | -1/Access | Crushed by falling debris 35494 | -1/Access | Discovered new exit (range 7) 35593 | -1/Access | Entered Command 35646 | -1/Command | Found Gamma Bomb Array 35648 | -1/Command | Found Gamma Bomb Array 35985 | -1/Command | Found Hvy. Reactive Plating 35998 | -1/Command | Spotted M Guard 35998 | -1/Command | Spotted M Guard 35998 | -1/Command | Spotted Combat Programmer 36012 | -1/Command | Destroyed M Guard 36015 | -1/Command | Destroyed M Guard 36020 | -1/Command | Destroyed Combat Programmer 36024 | -1/Command | Spotted Combat Programmer 36037 | -1/Command | Destroyed Combat Programmer 36037 | -1/Command | All MAIN.C guards destroyed 36069 | -1/Command | Found Prototype Reactor 36069 | -1/Command | Identified Zero-point Reactor 36078 | -1/Command | Found Zero-point Reactor 36080 | -1/Command | Found Zero-point Reactor 36083 | -1/Command | Found Zero-point Reactor 36108 | -1/Command | Found Prototype Protection 36108 | -1/Command | Identified Hvy. Regenerative Plating 36115 | -1/Command | Found Prototype Launcher 36115 | -1/Command | Identified Adv. Micro-nuke Launcher 36118 | -1/Command | Found Prototype Energy Cannon 36118 | -1/Command | Identified Cld. Nova Cannon 36125 | -1/Command | Found Prototype Device 36125 | -1/Command | Identified AEGIS Remote Shield 36133 | -1/Command | Found Cld. Nova Cannon 36149 | -1/Command | Found AEGIS Remote Shield 36498 | -1/Command | Build established: Scavenger-Mutant 36623 | -1/Command | Destroyed 8 combat bots 36695 | -1/Command | Spotted B-99 Colossus 36735 | -1/Command | Destroyed B-99 Colossus 36774 | -1/Command | Found Prototype Ballistic Gun 36780 | -1/Command | Found Prototype Ballistic Gun 36985 | -1/Command | Spotted B-99 Colossus 36992 | -1/Command | Identified Multirail (x2) 37017 | -1/Command | Destroyed B-99 Colossus 37060 | -1/Command | Destroyed 7 combat bots 37070 | -1/Command | Found Multirail 37080 | -1/Command | Found Multirail 37343 | -1/Command | First assault squad dispatched 37478 | -1/Command | Destroyed 10 combat bots 37496 | -1/Command | Found Hvy. Regenerative Plating 37579 | -1/Command | Met MAIN.C 37603 | -1/Command | Destroyed MAIN.C Shell 37606 | -1/Command | MAIN.C activated Command garrisons 37632 | -1/Command | Destroyed MAIN.C 37733 | -1/Command | Build established: Scavenger-Gunner 37797 | -1/Command | Destroyed 7 combat bots 38787 | -1/Command | Spotted Alpha 7 38794 | -1/Command | Destroyed Alpha 7 38811 | -1/Command | Found Multirail 39370 | -1/Command | Discovered new exit (range 9) 39382 | -1/Command | Found Prototype Processor 39907 | -1/Command | 0b10 Conduit disabled 40321 | -1/Command | Door terminal overloaded 40367 | -1/Command | Found Zero-point Reactor 40372 | -1/Command | Found Prototype Processor 40372 | -1/Command | Identified Exp. Armor Integrity Analyzer 40375 | -1/Command | Found Exp. Targeting Computer 40379 | -1/Command | Found Prototype Protection 40379 | -1/Command | Identified Centrium Heavy Armor Plating 40382 | -1/Command | Found Prototype Device 40382 | -1/Command | Identified Adv. Particle Accelerator 40403 | -1/Command | Found Multirail 40416 | -1/Command | Found Vortex Chain Reactor 40691 | -1/Command | Found Prototype Protection 40691 | -1/Command | Identified Exp. Powered Armor 40695 | -1/Command | Found Exp. Powered Armor 40744 | -1/Command | Found Prototype Ballistic Cannon 40744 | -1/Command | Identified Omega Cannon 41740 | -1/Command | Found Prototype Device 41740 | -1/Command | Identified Adv. Kinecellerator 41838 | -1/Command | Spotted B-99 Colossus 41843 | -1/Command | Destroyed B-99 Colossus 41875 | -1/Command | Found Exp. Targeting Computer 44086 | -1/Command | Warped through subspace to slip node 44086 | -1/Command | Discovered new exit (range 5) 44094 | -1/Command | Entered Access_0 44097 | -1/Access_0 | Met Architect 44110 | -1/Access_0 | Architect warped through subspace 44160 | -1/Access_0 | Architect warped through subspace 44205 | -1/Access_0 | Architect warped through subspace 44240 | -1/Access_0 | Architect warped through subspace 44272 | -1/Access_0 | Found Prototype Device 44272 | -1/Access_0 | Identified Exp. Weapon Cycler 44279 | -1/Access_0 | Architect warped through subspace 44279 | -1/Access_0 | Found Exp. Targeting Computer 44284 | -1/Access_0 | Found Prototype Device 44284 | -1/Access_0 | Identified Desublimator 44313 | -1/Access_0 | Architect warped through subspace 44338 | -1/Access_0 | Architect warped through subspace 44344 | -1/Access_0 | Subspace Access Node disabled 44364 | -1/Access_0 | Architect warped through subspace 44384 | -1/Access_0 | Architect warped through subspace 44399 | -1/Access_0 | A6 warped into view 44408 | -1/Access_0 | Destroyed A6 44410 | -1/Access_0 | Found Hpw. Transdimensional Reconstructor 44413 | -1/Access_0 | Architect warped through subspace 44416 | -1/Access_0 | Build established: Scavenger-Mutant 44435 | -1/Access_0 | Architect warped through subspace 44460 | -1/Access_0 | Architect warped through subspace 44467 | -1/Access_0 | Subspace Access Node disabled 44480 | -1/Access_0 | Architect warped through subspace 44500 | -1/Access_0 | Architect warped through subspace 44513 | -1/Access_0 | Architect warped through subspace 44539 | -1/Access_0 | Architect warped through subspace 44564 | -1/Access_0 | Architect warped through subspace 44585 | -1/Access_0 | Architect warped through subspace 44620 | -1/Access_0 | Architect warped through subspace 44640 | -1/Access_0 | Architect warped through subspace 44657 | -1/Access_0 | Architect warped through subspace 44664 | -1/Access_0 | A5 warped into view 44673 | -1/Access_0 | Architect warped through subspace 44680 | -1/Access_0 | Destroyed A5 44688 | -1/Access_0 | Architect warped through subspace 44704 | -1/Access_0 | Architect warped through subspace 44713 | -1/Access_0 | Architect warped through subspace 44741 | -1/Access_0 | Architect warped through subspace 44754 | -1/Access_0 | Subspace Access Node disabled 44767 | -1/Access_0 | Architect warped through subspace 44792 | -1/Access_0 | Architect warped through subspace 44808 | -1/Access_0 | Architect warped through subspace 44823 | -1/Access_0 | Architect warped through subspace 44837 | -1/Access_0 | Architect warped through subspace 44854 | -1/Access_0 | Architect warped through subspace 44867 | -1/Access_0 | Architect warped through subspace 44881 | -1/Access_0 | Architect warped through subspace 44893 | -1/Access_0 | Architect warped through subspace 44908 | -1/Access_0 | Subspace Access Node disabled 44940 | -1/Access_0 | Destroyed Architect 44941 | -1/Access_0 | Architect triggered a singularity event 44942 | -1/Access_0 | Warped through subspace to slip node 44942 | -1/Access_0 | Discovered new exit (range 8) 44944 | -1/Access_0 | Released all parts (18) 44947 | *** | Escaped singularity! Last Messages --------------- 44944_ Released Cld. Nova Cannon. 44944_ Released AEGIS Remote Shield. 44944_ Released Imp. Utility Shielding. 44944_ Released Exp. Optical Array. 44944_ Released Rnf. Quantum Reactor. 44944_ Released Multirail. 44944_ Released Exp. Powered Armor. 44944_ Released Exp. Targeting Computer. 44944_ Released Exp. Biometal Heavy Treads. 44944_ Released Med. Storage Unit. 44944_ Released Exp. Armor Integrity Analyzer. 44944_ Released Lrg. Storage Unit. 44944_ Graviton Cannon crushed and broken. 44944_ Released Sigix Broadsword. 44944_ Released Arm. Heavy Treads. 44944_ Released Exp. Weapon Cycler. 44944_ Released Exp. Targeting Computer. 44945_ A0_COM: 7. 44946_ A0_COM: 6. 44947_ A0_COM: 5. Map ----- +----------------------------------------------------+ | | | | | | | | | | | | | | | | | | | | | | | | | | | | | | | | | ?????????????????????????????????????????????????? | | ?????????????????????????????????????????????????? | | ?????????????????????????????????????????????????? | | ?????????????????????????????????????????????????? | | ?????????????????????????????????????????????????? | | ?????????????????????????????????????????????????? | | ????????????????????????###??????????????????????? | | ???????????????????????## ##?????????????????????? | | ???????????????????????# #?????????????????????? | | ???????????????????????# @ #?????????????????????? | | ??????????????????????## #?????????????????????? | | ??????????????????????# #?????????????????????? | | ??????????????????????# ! ##?????????????????????? | | ??????????????????????##!/=#?????????????????????? | | ??????????????????????#]!!]#?????????????????????? | | ??????????????????????#[*[##?????????????????????? | | ??????????????????????#!*]=#?????????????????????? | | ??????????????????????#=!!##?????????????????????? | | ??????????????????????##!]#??????????????????????? | | ???????????????????????####??????????????????????? | | ?????????????????????????????????????????????????? | | ?????????????????????????????????????????????????? | | ?????????????????????????????????????????????????? | | ?????????????????????????????????????????????????? | | ?????????????????????????????????????????????????? | | ?????????????????????????????????????????????????? | | ?????????????????????????????????????????????????? | | ?????????????????????????????????????????????????? | | ?????????????????????????????????????????????????? | | ?????????????????????????????????????????????????? | | ?????????????????????????????????????????????????? | | ?????????????????????????????????????????????????? | | ?????????????????????????????????????????????????? | | ?????????????????????????????????????????????????? | +----------------------------------------------------+ Best States ------------- Heat Dissipation 130 Coolant Potential 120 Energy Generation 81 Energy Capacity 1700 Matter Stores 800 Matter Capacity 800 Sight Range 23 Robot Scan Range 20 Terrain Scan Range 16 Terrain Scan Density 60 ECM Strength 3 Jamming Range 16 Cloak Strength 5 Base Temperature (-) 200 Armor Coverage 2400 Resistance: KI 40 Resistance: EM 75 Utility Shielding 66 Weapon Shielding 66 Weapon Cycling 30 Evasion (%) 76 Targeting Accuracy 24 Launcher Accuracy 40 Target Analysis 8 Core Analysis 15 Armor Integrity Analysis 90 Recoil Reduction 6 Matter Filtering 50 Energy Filtering 50 Kinecelleration 50 Offensive Hacking 24 Defensive Hacking 14 Relay Coupler Types 56 Relay Coupler Value 2 Item Schematics ----------------- Hcp. Storage Unit | -8/Materials | Scanalyzed Exp. Targeting Computer | -8/Materials | Scanalyzed Lgt. Treads | -8/Materials | Scanalyzed Adv. Signal Interpreter | -8/Materials | Scanalyzed Combat Drone Bay | -7/Data Miner | Free Lgt. Regenerative Plating | -7/Data Miner | Free Exp. Flexi-carbon Leg | -7/Data Miner | Free Exp. Sensor Array | -7/Data Miner | Free Exp. Terrain Scanner | -7/Data Miner | Free Tactical Coordination Suite | -7/Data Miner | Free Exp. ECM Suite | -7/Data Miner | Free Adv. Weapon Cycler | -6/Factory | Scanalyzed Assault Drone Bay | -5/Zhirov | Free Exp. Heat Sink | -5/Zhirov | Free Exp. Optical Array | -5/Zhirov | Free Imp. Arc Thrower | -5/Zhirov | Free Hyp. Gauss Cannon | -4/Factory | Extracted Robot Schematics ------------------ S-27 Virus | -7/Data Miner | Free G-50 Soldier | -7/Data Miner | Free L-41 Fighter | -7/Data Miner | Free H-66 Slayer | -7/Data Miner | Free I-36 Angel | -7/Data Miner | Free I-47 Archangel | -7/Data Miner | Free Fabricated ------------ Exp. Targeting Computer | x1 | -7/Factory Lrn. Proton Cannon | x1 | -6/Factory | Preloaded Adv. Weapon Cycler | x2 | -6/Factory Adv. Weapon Cycler | x2 | -3/Research I-47 Archangel | x1 | -3/Research | Preloaded Alien Tech Used ----------------- Dimensional Node Initializer Integrated Dissipator Transdimensional Reconstructor Sigix Broadsword High-powered Transdimensional Reconstructor Matter Drive Core Stripper Core Regenerator Integrated Singularity Reactor LRC Storage Achievements -------------- None Challenges ------------ None Game ------ Seed ImprinterSmartbombReplicator Manual? 0 Play Time 04:38:12 Cumulative 1859.8 hours Start 2020.12.07 @ 02:28:44 End 2020.12.07 @ 10:36:54 Sessions 7 Manual Loads 0 Difficulty Rogue Special Mode None Game No. 2527 Rogue 2519 Adventurer 0 Explorer 8 Win Type 6 Total 191 Types 41/26/74/3/3/5/36/2/1 Lore% 100 Gallery% 99 Achievement% 100 Wizard Run 0 Options --------- ASCII 0 Keyboard 1 Movement Numpad Keybinds 1 Fullscreen 1 Font 18/SmallcapsGlow Map View 76x50 Tactical HUD 1 Map Filters NONE Filters NONE Steam 1 RUN: 23d6b35a-5739-4ce3-ab12-b5e2a95a717e